Workbook

Sheet Admin
AA1: Year | AB1: Month
A2: Model | B2: WSkWh | AA2: 1995 | AB2: 1
AA3: 1996 | AB3: 2
A4: Actual | B4: Year | C4: Month | AA4: 1997 | AB4: 3
A5: From Date | B5: 2006 | C5: 1 | AA5: 1998 | AB5: 4
A6: To Date | B6: 2015 | C6: 12 | AA6: 1999 | AB6: 5
AA7: 2000 | AB7: 6
A8: Forecast Term | B8: 2 | C8: Years | AA8: 2001 | AB8: 7
AA9: 2002 | AB9: 8
A10: Forecast | B10: Year | C10: Month | AA10: 2003 | AB10: 9
A11: From Date | B11: 2016 | C11: 1 | E11: Months | AA11: 2004 | AB11: 10
A12: To Date | B12: 2017 | C12: 12 | E12: =MyMonthsCount(B11,C11,B12,C12) -> 24 | AA12: 2005 | AB12: 11
AA13: 2006 | AB13: 12
AA14: 2007
AA15: 2008
AA16: 2009
AA17: 2010
AA18: 2011
AA19: 2012
AA20: 2013
AA21: 2014
AA22: 2015
AA23: 2016
AA24: 2017
AA25: 2018
AA26: 2019
AA27: 2020
AA28: 2021
AA29: 2022
AA30: 2023
AA31: 2024
AA32: 2025
AA33: 2026
AA34: 2027
AA35: 2028
AA36: 2029
AA37: 2030

Sheet Monthly Data
A1: Date | B1: WSkWh | C1: LonHDD | D1: LonCDD | E1: MonthDays | F1: PeakDays | G1: Year | H1: Population
A2: 2006-01-01 | B2: 293367364.2 | C2: 554.7 | D2: 0 | E2: 31 | F2: 21 | G2: =YEAR(A2) -> 2006 | H2: 631343.7972
A3: 2006-02-01 | B3: 273298001.5 | C3: 609.3 | D3: 0 | E3: 28 | F3: 20 | G3: =YEAR(A3) -> 2006 | H3: 631751.858
A4: 2006-03-01 | B4: 286819878.5 | C4: 545.7 | D4: 0 | E4: 31 | F4: 23 | G4: 2006 | H4: 632160.1825
A5: 2006-04-01 | B5: 252565044.2 | C5: 286.1 | D5: 0 | E5: 30 | F5: 18 | G5: 2006 | H5: 632568.771
A6: 2006-05-01 | B6: 269392545 | C6: 151.9 | D6: 22.9 | E6: 31 | F6: 22 | G6: 2006 | H6: 632977.6235
A7: 2006-06-01 | B7: 287975078.9 | C7: 26.7 | D7: 44.4 | E7: 30 | F7: 22 | G7: 2006 | H7: 633386.7403
A8: 2006-07-01 | B8: 333043063.7 | C8: 3.3 | D8: 133.7 | E8: 31 | F8: 20 | G8: 2006 | H8: 633796.1215
A9: 2006-08-01 | B9: 312185503.2 | C9: 5.3 | D9: 68.2 | E9: 31 | F9: 22 | G9: 2006 | H9: 634205.7673
A10: 2006-09-01 | B10: 260653838.6 | C10: 98.5 | D10: 5 | E10: 30 | F10: 20 | G10: 2006 | H10: 634615.6779
A11: 2006-10-01 | B11: 270564368.4 | C11: 307.9 | D11: 0.7 | E11: 31 | F11: 21 | G11: 2006 | H11: 635025.8534
A12: 2006-11-01 | B12: 272439193.5 | C12: 383.4 | D12: 0 | E12: 30 | F12: 22 | G12: 2006 | H12: 635436.2941
A13: 2006-12-01 | B13: 288148645.8 | C13: 511.9 | D13: 0 | E13: 31 | F13: 19 | G13: 2006 | H13: 635847
A14: 2007-01-01 | B14: 300073560 | C14: 655.6 | D14: 0 | E14: 31 | F14: 22 | G14: 2007 | H14: 636023.3973
A15: 2007-02-01 | B15: 289732838.4 | C15: 758.7 | D15: 0 | E15: 28 | F15: 20 | G15: 2007 | H15: 636199.8435
A16: 2007-03-01 | B16: 288143354.6 | C16: 527 | D16: 0 | E16: 31 | F16: 22 | G16: 2007 | H16: 636376.3386
A17: 2007-04-01 | B17: 260543396.5 | C17: 371.1 | D17: 0 | E17: 30 | F17: 19 | G17: 2007 | H17: 636552.8827
A18: 2007-05-01 | B18: 268501831.2 | C18: 131.9 | D18: 22.7 | E18: 31 | F18: 22 | G18: 2007 | H18: 636729.4758
A19: 2007-06-01 | B19: 304679127 | C19: 23.2 | D19: 70.2 | E19: 30 | F19: 21 | G19: 2007 | H19: 636906.1179
A20: 2007-07-01 | B20: 302183688.8 | C20: 11.3 | D20: 71.6 | E20: 31 | F20: 21 | G20: 2007 | H20: 637082.809
A21: 2007-08-01 | B21: 317756807 | C21: 11.5 | D21: 89.1 | E21: 31 | F21: 22 | G21: 2007 | H21: 637259.5491
A22: 2007-09-01 | B22: 280873709.7 | C22: 61 | D22: 35 | E22: 30 | F22: 19 | G22: 2007 | H22: 637436.3383
A23: 2007-10-01 | B23: 275821162.1 | C23: 149.9 | D23: 21.5 | E23: 31 | F23: 22 | G23: 2007 | H23: 637613.1764
A24: 2007-11-01 | B24: 274311353.6 | C24: 468.7 | D24: 0 | E24: 30 | F24: 22 | G24: 2007 | H24: 637790.0637
A25: 2007-12-01 | B25: 294695847.8 | C25: 657 | D25: 0 | E25: 31 | F25: 19 | G25: 2007 | H25: 637967
A26: 2008-01-01 | B26: 301541879.9 | C26: 639 | D26: 0 | E26: 31 | F26: 22 | G26: 2008 | H26: 638231.8942
A27: 2008-02-01 | B27: 286013196.4 | C27: 692.5 | D27: 0 | E27: 29 | F27: 20 | G27: 2008 | H27: 638496.8984
A28: 2008-03-01 | B28: 285378792.3 | C28: 627.3 | D28: 0 | E28: 31 | F28: 19 | G28: 2008 | H28: 638762.0127
A29: 2008-04-01 | B29: 255049710.7 | C29: 265 | D29: 0 | E29: 30 | F29: 22 | G29: 2008 | H29: 639027.237
A30: 2008-05-01 | B30: 248546059.2 | C30: 208.8 | D30: 2.1 | E30: 31 | F30: 21 | G30: 2008 | H30: 639292.5715
A31: 2008-06-01 | B31: 287944901.3 | C31: 24.1 | D31: 66.4 | E31: 30 | F31: 21 | G31: 2008 | H31: 639558.0161
A32: 2008-07-01 | B32: 319461681.3 | C32: 4 | D32: 97 | E32: 31 | F32: 22 | G32: 2008 | H32: 639823.5709
A33: 2008-08-01 | B33: 293716156.3 | C33: 12.4 | D33: 53.2 | E33: 31 | F33: 20 | G33: 2008 | H33: 640089.236
A34: 2008-09-01 | B34: 283916906.4 | C34: 56.7 | D34: 21.4 | E34: 30 | F34: 21 | G34: 2008 | H34: 640355.0115
A35: 2008-10-01 | B35: 262065574 | C35: 286.8 | D35: 0 | E35: 31 | F35: 22 | G35: 2008 | H35: 640620.8972
A36: 2008-11-01 | B36: 268677317.4 | C36: 468.3 | D36: 0 | E36: 30 | F36: 20 | G36: 2008 | H36: 640886.8934
A37: 2008-12-01 | B37: 298039893.5 | C37: 671 | D37: 0 | E37: 31 | F37: 21 | G37: 2008 | H37: 641153
A38: 2009-01-01 | B38: 307276829.9 | C38: 849.6 | D38: 0 | E38: 31 | F38: 21 | G38: 2009 | H38: 641315.6063
A39: 2009-02-01 | B39: 264065998.4 | C39: 612.7 | D39: 0 | E39: 28 | F39: 19 | G39: 2009 | H39: 641478.2539
A40: 2009-03-01 | B40: 278082458 | C40: 533.3 | D40: 0 | E40: 31 | F40: 22 | G40: 2009 | H40: 641640.9427
A41: 2009-04-01 | B41: 250781054.8 | C41: 307 | D41: 3.2 | E41: 30 | F41: 20 | G41: 2009 | H41: 641803.6728
A42: 2009-05-01 | B42: 250742745.1 | C42: 156.9 | D42: 3.1 | E42: 31 | F42: 20 | G42: 2009 | H42: 641966.4441
A43: 2009-06-01 | B43: 265479494.8 | C43: 49.7 | D43: 35.5 | E43: 30 | F43: 22 | G43: 2009 | H43: 642129.2567
A44: 2009-07-01 | B44: 274906308.3 | C44: 20.2 | D44: 29.4 | E44: 31 | F44: 22 | G44: 2009 | H44: 642292.1107
A45: 2009-08-01 | B45: 300712862.7 | C45: 17.9 | D45: 71.9 | E45: 31 | F45: 20 | G45: 2009 | H45: 642455.0059
A46: 2009-09-01 | B46: 263969677.2 | C46: 71.2 | D46: 15.9 | E46: 30 | F46: 21 | G46: 2009 | H46: 642617.9424
A47: 2009-10-01 | B47: 258962858.8 | C47: 301.2 | D47: 0 | E47: 31 | F47: 21 | G47: 2009 | H47: 642780.9203
A48: 2009-11-01 | B48: 258162607.6 | C48: 356.7 | D48: 0 | E48: 30 | F48: 21 | G48: 2009 | H48: 642943.9395
A49: 2009-12-01 | B49: 292766418 | C49: 637.3 | D49: 0 | E49: 31 | F49: 21 | G49: 2009 | H49: 643107
A50: 2010-01-01 | B50: 301373371.7 | C50: 733.1 | D50: 0 | E50: 31 | F50: 20 | G50: 2010 | H50: 643459.1873
A51: 2010-02-01 | B51: 268164437.3 | C51: 633.4 | D51: 0 | E51: 28 | F51: 19 | G51: 2010 | H51: 643811.5674
A52: 2010-03-01 | B52: 269584961.7 | C52: 450.2 | D52: 0 | E52: 31 | F52: 23 | G52: 2010 | H52: 644164.1405
A53: 2010-04-01 | B53: 242909549.6 | C53: 236.4 | D53: 0 | E53: 30 | F53: 20 | G53: 2010 | H53: 644516.9068
A54: 2010-05-01 | B54: 269054896.2 | C54: 121.1 | D54: 34.9 | E54: 31 | F54: 20 | G54: 2010 | H54: 644869.8661
A55: 2010-06-01 | B55: 288397187.6 | C55: 23.6 | D55: 57.5 | E55: 30 | F55: 22 | G55: 2010 | H55: 645223.0188
A56: 2010-07-01 | B56: 334725938.1 | C56: 5.6 | D56: 129.7 | E56: 31 | F56: 21 | G56: 2010 | H56: 645576.3649
A57: 2010-08-01 | B57: 325611196.9 | C57: 6 | D57: 121.7 | E57: 31 | F57: 21 | G57: 2010 | H57: 645929.9045
A58: 2010-09-01 | B58: 264224372 | C58: 87.9 | D58: 24.1 | E58: 30 | F58: 21 | G58: 2010 | H58: 646283.6377
A59: 2010-10-01 | B59: 254480106.5 | C59: 239.5 | D59: 0 | E59: 31 | F59: 20 | G59: 2010 | H59: 646637.5646
A60: 2010-11-01 | B60: 262982872.6 | C60: 413.6 | D60: 0 | E60: 30 | F60: 22 | G60: 2010 | H60: 646991.6853
A61: 2010-12-01 | B61: 293281443.4 | C61: 713.5 | D61: 0 | E61: 31 | F61: 21 | G61: 2010 | H61: 647346
A62: 2011-01-01 | B62: 300666159.3 | C62: 798.8 | D62: 0 | E62: 31 | F62: 20 | G62: 2011 | H62: 647679.7188
A63: 2011-02-01 | B63: 269236699.8 | C63: 677.8 | D63: 0 | E63: 28 | F63: 19 | G63: 2011 | H63: 648013.6097
A64: 2011-03-01 | B64: 282763557.6 | C64: 599.6 | D64: 0 | E64: 31 | F64: 23 | G64: 2011 | H64: 648347.6727
A65: 2011-04-01 | B65: 251072267.6 | C65: 330.4 | D65: 0 | E65: 30 | F65: 19 | G65: 2011 | H65: 648681.9079
A66: 2011-05-01 | B66: 259668932.4 | C66: 126.4 | D66: 17.4 | E66: 31 | F66: 21 | G66: 2011 | H66: 649016.3154
A67: 2011-06-01 | B67: 278903469.9 | C67: 27 | D67: 39.6 | E67: 30 | F67: 22 | G67: =YEAR(A67) -> 2011 | H67: 649350.8953
A68: 2011-07-01 | B68: 342682880.6 | C68: 0 | D68: 160.9 | E68: 31 | F68: 20 | G68: 2011 | H68: 649685.6477
A69: 2011-08-01 | B69: 311408950 | C69: 1.5 | D69: 82.9 | E69: 31 | F69: 22 | G69: 2011 | H69: 650020.5727
A70: 2011-09-01 | B70: 270531205.4 | C70: 71.9 | D70: 29 | E70: 30 | F70: 21 | G70: 2011 | H70: 650355.6703
A71: 2011-10-01 | B71: 257212837.9 | C71: 234.6 | D71: 0 | E71: 31 | F71: 20 | G71: 2011 | H71: 650690.9407
A72: 2011-11-01 | B72: 256512690.7 | C72: 347.9 | D72: 0 | E72: 30 | F72: 22 | G72: 2011 | H72: 651026.3839
A73: 2011-12-01 | B73: 277881320.2 | C73: 548.4 | D73: 0 | E73: 31 | F73: 20 | G73: 2011 | H73: 651362
A74: 2012-01-01 | B74: 290374956 | C74: 644.8 | D74: 0 | E74: 31 | F74: 21 | G74: 2012 | H74: 651876.261
A75: 2012-02-01 | B75: 265047531.9 | C75: 553 | D75: 0 | E75: 29 | F75: 20 | G75: 2012 | H75: 652390.928
A76: 2012-03-01 | B76: 264589708.5 | C76: 331.1 | D76: 2.2 | E76: 31 | F76: 22 | G76: 2012 | H76: 652906.0014
A77: 2012-04-01 | B77: 241856924.9 | C77: 334.6 | D77: 0 | E77: 30 | F77: 19 | G77: 2012 | H77: 653421.4815
A78: 2012-05-01 | B78: 264293073.5 | C78: 87.2 | D78: 28.5 | E78: 31 | F78: 22 | G78: 2012 | H78: 653937.3685
A79: 2012-06-01 | B79: 290940514.1 | C79: 28.2 | D79: 81.7 | E79: 30 | F79: 21 | G79: 2012 | H79: 654453.6628
A80: 2012-07-01 | B80: 340196199.4 | C80: 0 | D80: 161 | E80: 31 | F80: 21 | G80: 2012 | H80: 654970.3647
A81: 2012-08-01 | B81: 304061556.8 | C81: 7.8 | D81: 79.6 | E81: 31 | F81: 22 | G81: 2012 | H81: 655487.4746
A82: 2012-09-01 | B82: 261393756 | C82: 103.4 | D82: 27.7 | E82: 30 | F82: 19 | G82: 2012 | H82: 656004.9927
A83: 2012-10-01 | B83: 253052401.8 | C83: 250.5 | D83: 0.7 | E83: 31 | F83: 22 | G83: 2012 | H83: 656522.9195
A84: 2012-11-01 | B84: 260224800 | C84: 420.4 | D84: 0 | E84: 30 | F84: 22 | G84: 2012 | H84: 657041.2551
A85: 2012-12-01 | B85: 271295249.8 | C85: 535.9 | D85: 0 | E85: 31 | F85: 19 | G85: 2012 | H85: 657560
A86: 2013-01-01 | B86: 288991701.3 | C86: 657.4 | D86: 0 | E86: 31 | F86: 22 | G86: 2013 | H86: 657954.1149
A87: 2013-02-01 | B87: 262888751 | C87: 657 | D87: 0 | E87: 28 | F87: 19 | G87: 2013 | H87: 658348.466
A88: 2013-03-01 | B88: 276366259.2 | C88: 581.9 | D88: 0 | E88: 31 | F88: 20 | G88: 2013 | H88: 658743.0534
A89: 2013-04-01 | B89: 251523569.8 | C89: 362.2 | D89: 0 | E89: 30 | F89: 21 | G89: 2013 | H89: 659137.8774
A90: 2013-05-01 | B90: 259256155.3 | C90: 122.2 | D90: 27 | E90: 31 | F90: 22 | G90: 2013 | H90: 659532.938
A91: 2013-06-01 | B91: 276460042.3 | C91: 41.1 | D91: 52.7 | E91: 30 | F91: 20 | G91: 2013 | H91: 659928.2353
A92: 2013-07-01 | B92: 321327185.6 | C92: 7.1 | D92: 112.9 | E92: 31 | F92: 22 | G92: 2013 | H92: 660323.7696
A93: 2013-08-01 | B93: 294037259.6 | C93: 18.4 | D93: 63.4 | E93: 31 | F93: 21 | G93: 2013 | H93: 660719.541
A94: 2013-09-01 | B94: 263616852.7 | C94: 94.9 | D94: 26 | E94: 30 | F94: 20 | G94: 2013 | H94: 661115.5496
A95: 2013-10-01 | B95: 260620451.1 | C95: 226.6 | D95: 2.6 | E95: 31 | F95: 22 | G95: 2013 | H95: 661511.7955
A96: 2013-11-01 | B96: 264051626 | C96: 492.1 | D96: 0 | E96: 30 | F96: 21 | G96: 2013 | H96: 661908.2789
A97: 2013-12-01 | B97: 286523069.5 | C97: 687.7 | D97: 0 | E97: 31 | F97: 20 | G97: 2013 | H97: 662305
A98: 2014-01-01 | B98: 305527740.5 | C98: 843.9 | D98: 0 | E98: 31 | F98: 22 | G98: 2014 | H98: 662715.6798
A99: 2014-02-01 | B99: 270783682.4 | C99: 790 | D99: 0 | E99: 28 | F99: 19 | G99: 2014 | H99: 663126.6143
A100: 2014-03-01 | B100: 288299673 | C100: 716.8 | D100: 0 | E100: 31 | F100: 21 | G100: 2014 | H100: 663537.8036
A101: 2014-04-01 | B101: 244855513 | C101: 353.8 | D101: 0 | E101: 30 | F101: 20 | G101: 2014 | H101: 663949.2479
A102: 2014-05-01 | B102: 251891961.5 | C102: 142.5 | D102: 12.2 | E102: 31 | F102: 21 | G102: 2014 | H102: 664360.9473
A103: 2014-06-01 | B103: 283978631.8 | C103: 19.7 | D103: 71.9 | E103: 30 | F103: 21 | G103: 2014 | H103: 664772.902
A104: 2014-07-01 | B104: 286546351.3 | C104: 21.5 | D104: 47.6 | E104: 31 | F104: 22 | G104: 2014 | H104: 665185.1121
A105: 2014-08-01 | B105: 283846898.6 | C105: 14.5 | D105: 53.4 | E105: 31 | F105: 20 | G105: 2014 | H105: 665597.5779
A106: 2014-09-01 | B106: 261882965.5 | C106: 86.2 | D106: 17.6 | E106: 30 | F106: 21 | G106: 2014 | H106: 666010.2994
A107: 2014-10-01 | B107: 246291396.5 | C107: 247.1 | D107: 0 | E107: 31 | F107: 22 | G107: 2014 | H107: 666423.2768
A108: 2014-11-01 | B108: 259203542.6 | C108: 503.7 | D108: 0 | E108: 30 | F108: 20 | G108: 2014 | H108: 666836.5103
A109: 2014-12-01 | B109: 264968874.8 | C109: 567.5 | D109: 0 | E109: 31 | F109: 21 | G109: 2014 | H109: 667250
A110: 2015-01-01 | B110: 295598619 | C110: 812.9 | D110: 0 | E110: 31 | F110: 21 | G110: 2015 | H110: 667637.0958
A111: 2015-02-01 | B111: 273784130.8 | C111: 872.9 | D111: 0 | E111: 28 | F111: 19 | G111: 2015 | H111: 668024.4162
A112: 2015-03-01 | B112: 274934256.1 | C112: 640.1 | D112: 0 | E112: 31 | F112: 22 | G112: 2015 | H112: 668411.9613
A113: 2015-04-01 | B113: 243458062.7 | C113: 336.6 | D113: 0 | E113: 30 | F113: 20 | G113: 2015 | H113: 668799.7312
A114: 2015-05-01 | B114: 259161560.2 | C114: 104.7 | D114: 34.9 | E114: 31 | F114: 20 | G114: 2015 | H114: 669187.7261
A115: 2015-06-01 | B115: 267546627.5 | C115: 29.7 | D115: 30.4 | E115: 30 | F115: 22 | G115: 2015 | H115: 669575.946
A116: 2015-07-01 | B116: 301589192.5 | C116: 7 | D116: 76.4 | E116: 31 | F116: 22 | G116: 2015 | H116: 669964.3912
A117: 2015-08-01 | B117: 290629200.9 | C117: 14 | D117: 61.6 | E117: 31 | F117: 20 | G117: 2015 | H117: 670353.0617
A118: 2015-09-01 | B118: 282605551.9 | C118: 34.6 | D118: 54.2 | E118: 30 | F118: 21 | G118: 2015 | H118: 670741.9578
A119: 2015-10-01 | B119: 248709445 | C119: 254.9 | D119: 0 | E119: 31 | F119: 21 | G119: 2015 | H119: 671131.0794
A120: 2015-11-01 | B120: 248717807.7 | C120: 353.2 | D120: 0 | E120: 30 | F120: 21 | G120: 2015 | H120: 671520.4268
A121: 2015-12-01 | B121: 260362308.7 | C121: 447.8 | D121: 0 | E121: 31 | F121: 21 | G121: 2015 | H121: 671910

Sheet OLS Model
A1: SUMMARY OUTPUT
A3: Regression Statistics
A4: Multiple R | B4: 0.9494109029
A5: R Square | B5: 0.9013810626
A6: Adjusted R Square | B6: 0.8961446588
A7: Standard Error | B7: 7106331.255
A8: Observations | B8: 120
A10: ANOVA
B11: df | C11: SS | D11: MS | E11: F | F11: Significance F
A12: Regression | B12: 6 | C12: 5.215758205e+16 | D12: 8692930341314567 | E12: 172.1374257 | F12: 1.977066378e-54
A13: Residual | B13: 113 | C13: 5706493661533933 | D13: 5.049994391e+13
A14: Total | B14: 119 | C14: 5.786407571e+16
B16: Coefficients | C16: Standard Error | D16: t Stat | E16: P-value | F16: Lower 95% | G16: Upper 95%
A17: WSkWh | B17: 6733221371 | C17: 2556969472 | D17: 2.633281877 | E17: 0.00964033911 | F17: 1667403673 | G17: 1.179903907e+10
A18: LonHDD | B18: 68114.5098 | C18: 3491.493192 | D18: 19.50870474 | E18: 5.669376352e-38 | F18: 61197.23206 | G18: 75031.78753
A19: LonCDD | B19: 727412.1711 | C19: 24630.93909 | D19: 29.53245788 | E19: 5.835198211e-55 | F19: 678613.8383 | G19: 776210.5038
A20: MonthDays | B20: 4684014.523 | C20: 892586.4117 | D20: 5.247687464 | E20: 7.287614684e-07 | F20: 2915639.855 | G20: 6452389.191
A21: PeakDays | B21: 2081359.15 | C21: 661898.0069 | D21: 3.144531526 | E21: 0.002125834787 | F21: 770019.8185 | G21: 3392698.481
A22: Year | B22: -3460144.214 | C22: 1377730.339 | D22: -2.511481468 | E22: 0.01343573576 | F22: -6189676.502 | G22: -730611.9255
A23: Population | B23: 426.0441579 | C23: 336.5864305 | D23: 1.265779364 | E23: 0.2081956034 | F23: -240.7942674 | G23: 1092.882583

Sheet Forecasting Data
A1: Date | B1: WSkWh | C1: LonHDD | D1: LonCDD | E1: MonthDays | F1: PeakDays | G1: Year | H1: Population
A2: 2016-01-01 | C2: 718.98 | D2: 0 | E2: 31 | F2: 20 | G2: =YEAR(A2) -> 2016 | H2: 672300.6956
A3: 2016-02-01 | C3: 685.73 | D3: 0 | E3: 29 | F3: 20 | G3: =YEAR(A3) -> 2016 | H3: 672691.6184
A4: 2016-03-01 | C4: 555.3 | D4: 0.22 | E4: 31 | F4: 21 | G4: 2016 | H4: 673082.7685
A5: 2016-04-01 | C5: 318.32 | D5: 0.32 | E5: 30 | F5: 21 | G5: 2016 | H5: 673474.146
A6: 2016-05-01 | C6: 135.36 | D6: 20.57 | E6: 31 | F6: 21 | G6: 2016 | H6: 673865.7511
A7: 2016-06-01 | C7: 29.3 | D7: 55.03 | E7: 30 | F7: 22 | G7: 2016 | H7: 674257.5839
A8: 2016-07-01 | C8: 8 | D8: 102.02 | E8: 31 | F8: 20 | G8: 2016 | H8: 674649.6445
A9: 2016-08-01 | C9: 10.93 | D9: 74.5 | E9: 31 | F9: 22 | G9: 2016 | H9: 675041.9332
A10: 2016-09-01 | C10: 76.63 | D10: 25.59 | E10: 30 | F10: 21 | G10: 2016 | H10: 675434.4499
A11: 2016-10-01 | C11: 249.9 | D11: 2.55 | E11: 31 | F11: 20 | G11: 2016 | H11: 675827.1948
A12: 2016-11-01 | C12: 420.8 | D12: 0 | E12: 30 | F12: 22 | G12: 2016 | H12: 676220.1682
A13: 2016-12-01 | C13: 597.8 | D13: 0 | E13: 31 | F13: 20 | G13: 2016 | H13: 676613.37
A14: 2017-01-01 | C14: 718.98 | D14: 0 | E14: 31 | F14: 21 | G14: 2017 | H14: 677062.8
A15: 2017-02-01 | C15: 685.73 | D15: 0 | E15: 28 | F15: 19 | G15: 2017 | H15: 677512.5286
A16: 2017-03-01 | C16: 555.3 | D16: 0.22 | E16: 31 | F16: 23 | G16: 2017 | H16: 677962.5559
A17: 2017-04-01 | C17: 318.32 | D17: 0.32 | E17: 30 | F17: 18 | G17: 2017 | H17: 678412.8821
A18: 2017-05-01 | C18: 135.36 | D18: 20.57 | E18: 31 | F18: 22 | G18: 2017 | H18: 678863.5075
A19: 2017-06-01 | C19: 29.3 | D19: 55.03 | E19: 30 | F19: 22 | G19: 2017 | H19: 679314.4321
A20: 2017-07-01 | C20: 8 | D20: 102.02 | E20: 31 | F20: 20 | G20: 2017 | H20: 679765.6563
A21: 2017-08-01 | C21: 10.93 | D21: 74.5 | E21: 31 | F21: 22 | G21: 2017 | H21: 680217.1802
A22: 2017-09-01 | C22: 76.63 | D22: 25.59 | E22: 30 | F22: 20 | G22: 2017 | H22: 680669.004
A23: 2017-10-01 | C23: 249.9 | D23: 2.55 | E23: 31 | F23: 21 | G23: 2017 | H23: 681121.1279
A24: 2017-11-01 | C24: 420.8 | D24: 0 | E24: 30 | F24: 22 | G24: 2017 | H24: 681573.5522
A25: 2017-12-01 | C25: 597.8 | D25: 0 | E25: 31 | F25: 19 | G25: 2017 | H25: 682026.277

Sheet Predicted Monthly Data
A1: Date | B1: WSkWh | C1: LonHDD | D1: LonCDD | E1: MonthDays | F1: PeakDays | G1: Year | H1: Population | J1: WSkWh | K1: LonHDD | L1: LonCDD | M1: MonthDays | N1: PeakDays | O1: Year | P1: Population | Q1: Predicted Value
A2: 2006-01-01 | B2: 293367364.2 | C2: 554.7 | D2: 0 | E2: 31 | F2: 21 | G2: =YEAR(A2) -> 2006 | H2: 631343.7972 | J2: =WSkWh -> 6733221371 | K2: =LonHDD*C2 -> 37783118.58 | L2: =LonCDD*D2 -> 0 | M2: =MonthDays*E2 -> 145204450.2 | N2: =PeakDays*F2 -> 43708542.14 | O2: =Year*G2 -> -6941049293 | P2: =Population*H2 -> 268980336.5 | Q2: =SUM(J2:P2) -> 287848525.6
A3: 2006-02-01 | B3: 273298001.5 | C3: 609.3 | D3: 0 | E3: 28 | F3: 20 | G3: =YEAR(A3) -> 2006 | H3: 631751.858 | J3: 6733221371 | K3: 41502170.82 | L3: 0 | M3: 131152406.6 | N3: 41627182.99 | O3: -6941049293 | P3: 269154188.4 | Q3: 275608027.1
A4: 2006-03-01 | B4: 286819878.5 | C4: 545.7 | D4: 0 | E4: 31 | F4: 23 | G4: 2006 | H4: 632160.1825 | J4: 6733221371 | K4: 37170088 | L4: 0 | M4: 145204450.2 | N4: 47871260.44 | O4: -6941049293 | P4: 269328152.7 | Q4: 291746029.5
A5: 2006-04-01 | B5: 252565044.2 | C5: 286.1 | D5: 0 | E5: 30 | F5: 18 | G5: 2006 | H5: 632568.771 | J5: 6733221371 | K5: 19487561.25 | L5: 0 | M5: 140520435.7 | N5: 37464464.69 | O5: -6941049293 | P5: 269502229.4 | Q5: 259146769.2
A6: 2006-05-01 | B6: 269392545 | C6: 151.9 | D6: 22.9 | E6: 31 | F6: 22 | G6: 2006 | H6: 632977.6235 | J6: 6733221371 | K6: 10346594.04 | L6: 16657738.72 | M6: 145204450.2 | N6: 45789901.29 | O6: -6941049293 | P6: 269676418.6 | Q6: 279847181.1
A7: 2006-06-01 | B7: 287975078.9 | C7: 26.7 | D7: 44.4 | E7: 30 | F7: 22 | G7: 2006 | H7: 633386.7403 | J7: 6733221371 | K7: 1818657.412 | L7: 32297100.4 | M7: 140520435.7 | N7: 45789901.29 | O7: -6941049293 | P7: 269850720.4 | Q7: 282448893.4
A8: 2006-07-01 | B8: 333043063.7 | C8: 3.3 | D8: 133.7 | E8: 31 | F8: 20 | G8: 2006 | H8: 633796.1215 | J8: 6733221371 | K8: 224777.8823 | L8: 97255007.27 | M8: 145204450.2 | N8: 41627182.99 | O8: -6941049293 | P8: 270025134.9 | Q8: 346508631.5
A9: 2006-08-01 | B9: 312185503.2 | C9: 5.3 | D9: 68.2 | E9: 31 | F9: 22 | G9: 2006 | H9: 634205.7673 | J9: 6733221371 | K9: 361006.9019 | L9: 49609510.07 | M9: 145204450.2 | N9: 45789901.29 | O9: -6941049293 | P9: 270199662.1 | Q9: 303336608.8
A10: 2006-09-01 | B10: 260653838.6 | C10: 98.5 | D10: 5 | E10: 30 | F10: 20 | G10: 2006 | H10: 634615.6779 | J10: 6733221371 | K10: 6709279.215 | L10: 3637060.855 | M10: 140520435.7 | N10: 41627182.99 | O10: -6941049293 | P10: 270374302.1 | Q10: 255040339.1
A11: 2006-10-01 | B11: 270564368.4 | C11: 307.9 | D11: 0.7 | E11: 31 | F11: 21 | G11: 2006 | H11: 635025.8534 | J11: 6733221371 | K11: 20972457.57 | L11: 509188.5198 | M11: 145204450.2 | N11: 43708542.14 | O11: -6941049293 | P11: 270549055 | Q11: 273115771.7
A12: 2006-11-01 | B12: 272439193.5 | C12: 383.4 | D12: 0 | E12: 30 | F12: 22 | G12: 2006 | H12: 635436.2941 | J12: 6733221371 | K12: 26115103.06 | L12: 0 | M12: 140520435.7 | N12: 45789901.29 | O12: -6941049293 | P12: 270723920.8 | Q12: 275321439.1
A13: 2006-12-01 | B13: 288148645.8 | C13: 511.9 | D13: 0 | E13: 31 | F13: 19 | G13: 2006 | H13: 635847 | J13: 6733221371 | K13: 34867817.57 | L13: 0 | M13: 145204450.2 | N13: 39545823.84 | O13: -6941049293 | P13: 270898899.7 | Q13: 282689069.5
A14: 2007-01-01 | B14: 300073560 | C14: 655.6 | D14: 0 | E14: 31 | F14: 22 | G14: 2007 | H14: 636023.3973 | J14: 6733221371 | K14: 44655872.62 | L14: 0 | M14: 145204450.2 | N14: 45789901.29 | O14: -6944509437 | P14: 270974052.7 | Q14: 295336210.9
A15: 2007-02-01 | B15: 289732838.4 | C15: 758.7 | D15: 0 | E15: 28 | F15: 20 | G15: 2007 | H15: 636199.8435 | J15: 6733221371 | K15: 51678478.58 | L15: 0 | M15: 131152406.6 | N15: 41627182.99 | O15: -6944509437 | P15: 271049226.6 | Q15: 284219228.8
A16: 2007-03-01 | B16: 288143354.6 | C16: 527 | D16: 0 | E16: 31 | F16: 22 | G16: 2007 | H16: 636376.3386 | J16: 6733221371 | K16: 35896346.66 | L16: 0 | M16: 145204450.2 | N16: 45789901.29 | O16: -6944509437 | P16: 271124421.3 | Q16: 286727053.5
A17: 2007-04-01 | B17: 260543396.5 | C17: 371.1 | D17: 0 | E17: 30 | F17: 19 | G17: 2007 | H17: 636552.8827 | J17: 6733221371 | K17: 25277294.59 | L17: 0 | M17: 140520435.7 | N17: 39545823.84 | O17: -6944509437 | P17: 271199636.9 | Q17: 265255125
A18: 2007-05-01 | B18: 268501831.2 | C18: 131.9 | D18: 22.7 | E18: 31 | F18: 22 | G18: 2007 | H18: 636729.4758 | J18: 6733221371 | K18: 8984303.842 | L18: 16512256.28 | M18: 145204450.2 | N18: 45789901.29 | O18: -6944509437 | P18: 271274873.4 | Q18: 276477719
A19: 2007-06-01 | B19: 304679127 | C19: 23.2 | D19: 70.2 | E19: 30 | F19: 21 | G19: 2007 | H19: 636906.1179 | J19: 6733221371 | K19: 1580256.627 | L19: 51064334.41 | M19: 140520435.7 | N19: 43708542.14 | O19: -6944509437 | P19: 271350130.7 | Q19: 296935633.6
A20: 2007-07-01 | B20: 302183688.8 | C20: 11.3 | D20: 71.6 | E20: 31 | F20: 21 | G20: 2007 | H20: 637082.809 | J20: 6733221371 | K20: 769693.9607 | L20: 52082711.45 | M20: 145204450.2 | N20: 43708542.14 | O20: -6944509437 | P20: 271425408.9 | Q20: 301902740.7
A21: 2007-08-01 | B21: 317756807 | C21: 11.5 | D21: 89.1 | E21: 31 | F21: 22 | G21: 2007 | H21: 637259.5491 | J21: 6733221371 | K21: 783316.8627 | L21: 64812424.44 | M21: 145204450.2 | N21: 45789901.29 | O21: -6944509437 | P21: 271500708 | Q21: 316802734.8
A22: 2007-09-01 | B22: 280873709.7 | C22: 61 | D22: 35 | E22: 30 | F22: 19 | G22: 2007 | H22: 637436.3383 | J22: 6733221371 | K22: 4154985.098 | L22: 25459425.99 | M22: 140520435.7 | N22: 39545823.84 | O22: -6944509437 | P22: 271576028 | Q22: 269968632.6
A23: 2007-10-01 | B23: 275821162.1 | C23: 149.9 | D23: 21.5 | E23: 31 | F23: 22 | G23: 2007 | H23: 637613.1764 | J23: 6733221371 | K23: 10210365.02 | L23: 15639361.68 | M23: 145204450.2 | N23: 45789901.29 | O23: -6944509437 | P23: 271651368.9 | Q23: 277207381.1
A24: 2007-11-01 | B24: 274311353.6 | C24: 468.7 | D24: 0 | E24: 30 | F24: 22 | G24: 2007 | H24: 637790.0637 | J24: 6733221371 | K24: 31925270.74 | L24: 0 | M24: 140520435.7 | N24: 45789901.29 | O24: -6944509437 | P24: 271726730.6 | Q24: 278674272.4
A25: 2007-12-01 | B25: 294695847.8 | C25: 657 | D25: 0 | E25: 31 | F25: 19 | G25: 2007 | H25: 637967 | J25: 6733221371 | K25: 44751232.94 | L25: 0 | M25: 145204450.2 | N25: 39545823.84 | O25: -6944509437 | P25: 271802113.3 | Q25: 290015554.3
A26: 2008-01-01 | B26: 301541879.9 | C26: 639 | D26: 0 | E26: 31 | F26: 22 | G26: 2008 | H26: 638231.8942 | J26: 6733221371 | K26: 43525171.76 | L26: 0 | M26: 145204450.2 | N26: 45789901.29 | O26: -6947969582 | P26: 271914969.9 | Q26: 291686283
A27: 2008-02-01 | B27: 286013196.4 | C27: 692.5 | D27: 0 | E27: 29 | F27: 20 | G27: 2008 | H27: 638496.8984 | J27: 6733221371 | K27: 47169298.04 | L27: 0 | M27: 135836421.2 | N27: 41627182.99 | O27: -6947969582 | P27: 272027873.4 | Q27: 281912565.4
A28: 2008-03-01 | B28: 285378792.3 | C28: 627.3 | D28: 0 | E28: 31 | F28: 19 | G28: 2008 | H28: 638762.0127 | J28: 6733221371 | K28: 42728232 | L28: 0 | M28: 145204450.2 | N28: 39545823.84 | O28: -6947969582 | P28: 272140823.8 | Q28: 284871119.7
A29: 2008-04-01 | B29: 255049710.7 | C29: 265 | D29: 0 | E29: 30 | F29: 22 | G29: 2008 | H29: 639027.237 | J29: 6733221371 | K29: 18050345.1 | L29: 0 | M29: 140520435.7 | N29: 45789901.29 | O29: -6947969582 | P29: 272253821.1 | Q29: 261866293
A30: 2008-05-01 | B30: 248546059.2 | C30: 208.8 | D30: 2.1 | E30: 31 | F30: 21 | G30: 2008 | H30: 639292.5715 | J30: 6733221371 | K30: 14222309.65 | L30: 1527565.559 | M30: 145204450.2 | N30: 43708542.14 | O30: -6947969582 | P30: 272366865.3 | Q30: 262281522.6
A31: 2008-06-01 | B31: 287944901.3 | C31: 24.1 | D31: 66.4 | E31: 30 | F31: 21 | G31: 2008 | H31: 639558.0161 | J31: 6733221371 | K31: 1641559.686 | L31: 48300168.16 | M31: 140520435.7 | N31: 43708542.14 | O31: -6947969582 | P31: 272479956.4 | Q31: 291902451.9
A32: 2008-07-01 | B32: 319461681.3 | C32: 4 | D32: 97 | E32: 31 | F32: 22 | G32: 2008 | H32: 639823.5709 | J32: 6733221371 | K32: 272458.0392 | L32: 70558980.6 | M32: 145204450.2 | N32: 45789901.29 | O32: -6947969582 | P32: 272593094.5 | Q32: 319670674.4
A33: 2008-08-01 | B33: 293716156.3 | C33: 12.4 | D33: 53.2 | E33: 31 | F33: 20 | G33: 2008 | H33: 640089.236 | J33: 6733221371 | K33: 844619.9215 | L33: 38698327.5 | M33: 145204450.2 | N33: 41627182.99 | O33: -6947969582 | P33: 272706279.6 | Q33: 284332650
A34: 2008-09-01 | B34: 283916906.4 | C34: 56.7 | D34: 21.4 | E34: 30 | F34: 21 | G34: 2008 | H34: 640355.0115 | J34: =WSkWh -> 6733221371 | K34: =LonHDD*C34 -> 3862092.706 | L34: =LonCDD*D34 -> 15566620.46 | M34: =MonthDays*E34 -> 140520435.7 | N34: =PeakDays*F34 -> 43708542.14 | O34: =Year*G34 -> -6947969582 | P34: =Population*H34 -> 272819511.6 | Q34: =SUM(J34:P34) -> 261728992.4
A35: 2008-10-01 | B35: 262065574 | C35: 286.8 | D35: 0 | E35: 31 | F35: 22 | G35: 2008 | H35: 640620.8972 | J35: 6733221371 | K35: 19535241.41 | L35: 0 | M35: 145204450.2 | N35: 45789901.29 | O35: -6947969582 | P35: 272932790.7 | Q35: 268714173.4
A36: 2008-11-01 | B36: 268677317.4 | C36: 468.3 | D36: 0 | E36: 30 | F36: 20 | G36: 2008 | H36: 640886.8934 | J36: 6733221371 | K36: 31898024.94 | L36: 0 | M36: 140520435.7 | N36: 41627182.99 | O36: -6947969582 | P36: 273046116.8 | Q36: 272343550.2
A37: 2008-12-01 | B37: 298039893.5 | C37: 671 | D37: 0 | E37: 31 | F37: 21 | G37: 2008 | H37: 641153 | J37: 6733221371 | K37: 45704836.07 | L37: 0 | M37: 145204450.2 | N37: 43708542.14 | O37: -6947969582 | P37: 273159490 | Q37: 293029108.2
A38: 2009-01-01 | B38: 307276829.9 | C38: 849.6 | D38: 0 | E38: 31 | F38: 21 | G38: 2009 | H38: 641315.6063 | J38: 6733221371 | K38: 57870087.52 | L38: 0 | M38: 145204450.2 | N38: 43708542.14 | O38: -6951429726 | P38: 273228767.5 | Q38: 301803492.9
A39: 2009-02-01 | B39: 264065998.4 | C39: 612.7 | D39: 0 | E39: 28 | F39: 19 | G39: 2009 | H39: 641478.2539 | J39: 6733221371 | K39: 41733760.15 | L39: 0 | M39: 131152406.6 | N39: 39545823.84 | O39: -6951429726 | P39: 273298062.5 | Q39: 267521698.7
A40: 2009-03-01 | B40: 278082458 | C40: 533.3 | D40: 0 | E40: 31 | F40: 22 | G40: 2009 | H40: 641640.9427 | J40: 6733221371 | K40: 36325468.08 | L40: 0 | M40: 145204450.2 | N40: 45789901.29 | O40: -6951429726 | P40: 273367375.1 | Q40: 282478840.3
A41: 2009-04-01 | B41: 250781054.8 | C41: 307 | D41: 3.2 | E41: 30 | F41: 20 | G41: 2009 | H41: 641803.6728 | J41: 6733221371 | K41: 20911154.51 | L41: 2327718.947 | M41: 140520435.7 | N41: 41627182.99 | O41: -6951429726 | P41: 273436705.3 | Q41: 260614843.1
A42: 2009-05-01 | B42: 250742745.1 | C42: 156.9 | D42: 3.1 | E42: 31 | F42: 20 | G42: 2009 | H42: 641966.4441 | J42: 6733221371 | K42: 10687166.59 | L42: 2254977.73 | M42: 145204450.2 | N42: 41627182.99 | O42: -6951429726 | P42: 273506053.1 | Q42: 255071476.2
A43: 2009-06-01 | B43: 265479494.8 | C43: 49.7 | D43: 35.5 | E43: 30 | F43: 22 | G43: 2009 | H43: 642129.2567 | J43: 6733221371 | K43: 3385291.137 | L43: 25823132.07 | M43: 140520435.7 | N43: 45789901.29 | O43: -6951429726 | P43: 273575418.5 | Q43: 270885824.3
A44: 2009-07-01 | B44: 274906308.3 | C44: 20.2 | D44: 29.4 | E44: 31 | F44: 22 | G44: 2009 | H44: 642292.1107 | J44: 6733221371 | K44: 1375913.098 | L44: 21385917.83 | M44: 145204450.2 | N44: 45789901.29 | O44: -6951429726 | P44: 273644801.4 | Q44: 269192629.5
A45: 2009-08-01 | B45: 300712862.7 | C45: 17.9 | D45: 71.9 | E45: 31 | F45: 20 | G45: 2009 | H45: 642455.0059 | J45: 6733221371 | K45: 1219249.725 | L45: 52300935.1 | M45: 145204450.2 | N45: 41627182.99 | O45: -6951429726 | P45: 273714202 | Q45: 295857665.6
A46: 2009-09-01 | B46: 263969677.2 | C46: 71.2 | D46: 15.9 | E46: 30 | F46: 21 | G46: 2009 | H46: 642617.9424 | J46: 6733221371 | K46: 4849753.098 | L46: 11565853.52 | M46: 140520435.7 | N46: 43708542.14 | O46: -6951429726 | P46: 273783620.2 | Q46: 256219850.2
A47: 2009-10-01 | B47: 258962858.8 | C47: 301.2 | D47: 0 | E47: 31 | F47: 21 | G47: 2009 | H47: 642780.9203 | J47: 6733221371 | K47: 20516090.35 | L47: 0 | M47: 145204450.2 | N47: 43708542.14 | O47: -6951429726 | P47: 273853055.9 | Q47: 265073784.2
A48: 2009-11-01 | B48: 258162607.6 | C48: 356.7 | D48: 0 | E48: 30 | F48: 21 | G48: 2009 | H48: 642943.9395 | J48: 6733221371 | K48: 24296445.64 | L48: 0 | M48: 140520435.7 | N48: 43708542.14 | O48: -6951429726 | P48: 273922509.3 | Q48: 264239578.4
A49: 2009-12-01 | B49: 292766418 | C49: 637.3 | D49: 0 | E49: 31 | F49: 21 | G49: 2009 | H49: 643107 | J49: 6733221371 | K49: 43409377.09 | L49: 0 | M49: 145204450.2 | N49: 43708542.14 | O49: -6951429726 | P49: 273991980.3 | Q49: 288105995.3
A50: 2010-01-01 | B50: 301373371.7 | C50: 733.1 | D50: 0 | E50: 31 | F50: 20 | G50: 2010 | H50: 643459.1873 | J50: 6733221371 | K50: 49934747.13 | L50: 0 | M50: 145204450.2 | N50: 41627182.99 | O50: -6954889870 | P50: 274142027.6 | Q50: 289239909.3
A51: 2010-02-01 | B51: 268164437.3 | C51: 633.4 | D51: 0 | E51: 28 | F51: 19 | G51: 2010 | H51: 643811.5674 | J51: 6733221371 | K51: 43143730.51 | L51: 0 | M51: 131152406.6 | N51: 39545823.84 | O51: -6954889870 | P51: 274292157.1 | Q51: 266465619.5
A52: 2010-03-01 | B52: 269584961.7 | C52: 450.2 | D52: 0 | E52: 31 | F52: 23 | G52: 2010 | H52: 644164.1405 | J52: 6733221371 | K52: 30665152.31 | L52: 0 | M52: 145204450.2 | N52: 47871260.44 | O52: -6954889870 | P52: 274442368.8 | Q52: 276514733.2
A53: 2010-04-01 | B53: 242909549.6 | C53: 236.4 | D53: 0 | E53: 30 | F53: 20 | G53: 2010 | H53: 644516.9068 | J53: 6733221371 | K53: 16102270.12 | L53: 0 | M53: 140520435.7 | N53: 41627182.99 | O53: -6954889870 | P53: 274592662.8 | Q53: 251174053
A54: 2010-05-01 | B54: 269054896.2 | C54: 121.1 | D54: 34.9 | E54: 31 | F54: 20 | G54: 2010 | H54: 644869.8661 | J54: 6733221371 | K54: 8248667.137 | L54: 25386684.77 | M54: 145204450.2 | N54: 41627182.99 | O54: -6954889870 | P54: 274743039.1 | Q54: 273541525.6
A55: 2010-06-01 | B55: 288397187.6 | C55: 23.6 | D55: 57.5 | E55: 30 | F55: 22 | G55: 2010 | H55: 645223.0188 | J55: 6733221371 | K55: 1607502.431 | L55: 41826199.84 | M55: 140520435.7 | N55: 45789901.29 | O55: -6954889870 | P55: 274893497.7 | Q55: 282969038.4
A56: 2010-07-01 | B56: 334725938.1 | C56: 5.6 | D56: 129.7 | E56: 31 | F56: 21 | G56: 2010 | H56: 645576.3649 | J56: 6733221371 | K56: 381441.2549 | L56: 94345358.59 | M56: 145204450.2 | N56: 43708542.14 | O56: -6954889870 | P56: 275044038.8 | Q56: 337015332.3
A57: 2010-08-01 | B57: 325611196.9 | C57: 6 | D57: 121.7 | E57: 31 | F57: 21 | G57: 2010 | H57: 645929.9045 | J57: 6733221371 | K57: 408687.0588 | L57: 88526061.22 | M57: 145204450.2 | N57: 43708542.14 | O57: -6954889870 | P57: 275194662.2 | Q57: 331373904.3
A58: 2010-09-01 | B58: 264224372 | C58: 87.9 | D58: 24.1 | E58: 30 | F58: 21 | G58: 2010 | H58: 646283.6377 | J58: 6733221371 | K58: 5987265.411 | L58: 17530633.32 | M58: 140520435.7 | N58: 43708542.14 | O58: -6954889870 | P58: 275345368.2 | Q58: 261423746.1
A59: 2010-10-01 | B59: 254480106.5 | C59: 239.5 | D59: 0 | E59: 31 | F59: 20 | G59: 2010 | H59: 646637.5646 | J59: 6733221371 | K59: 16313425.1 | L59: 0 | M59: 145204450.2 | N59: 41627182.99 | O59: -6954889870 | P59: 275496156.7 | Q59: 256972716.4
A60: 2010-11-01 | B60: 262982872.6 | C60: 413.6 | D60: 0 | E60: 30 | F60: 22 | G60: 2010 | H60: 646991.6853 | J60: 6733221371 | K60: 28172161.25 | L60: 0 | M60: 140520435.7 | N60: 45789901.29 | O60: -6954889870 | P60: 275647027.8 | Q60: 268461027.4
A61: 2010-12-01 | B61: 293281443.4 | C61: 713.5 | D61: 0 | E61: 31 | F61: 21 | G61: 2010 | H61: 647346 | J61: 6733221371 | K61: 48599702.74 | L61: 0 | M61: 145204450.2 | N61: 43708542.14 | O61: -6954889870 | P61: 275797981.5 | Q61: 291642177.9
A62: 2011-01-01 | B62: 300666159.3 | C62: 798.8 | D62: 0 | E62: 31 | F62: 20 | G62: 2011 | H62: 647679.7188 | J62: 6733221371 | K62: 54409870.43 | L62: 0 | M62: 145204450.2 | N62: 41627182.99 | O62: -6958350014 | P62: 275940160.4 | Q62: 292053021.2
A63: 2011-02-01 | B63: 269236699.8 | C63: 677.8 | D63: 0 | E63: 28 | F63: 19 | G63: 2011 | H63: 648013.6097 | J63: 6733221371 | K63: 46168014.74 | L63: 0 | M63: 131152406.6 | N63: 39545823.84 | O63: -6958350014 | P63: 276082412.7 | Q63: 267820015.1
A64: 2011-03-01 | B64: 282763557.6 | C64: 599.6 | D64: 0 | E64: 31 | F64: 23 | G64: 2011 | H64: 648347.6727 | J64: 6733221371 | K64: 40841460.07 | L64: 0 | M64: 145204450.2 | N64: 47871260.44 | O64: -6958350014 | P64: 276224738.3 | Q64: 285013266.1
A65: 2011-04-01 | B65: 251072267.6 | C65: 330.4 | D65: 0 | E65: 30 | F65: 19 | G65: 2011 | H65: 648681.9079 | J65: 6733221371 | K65: 22505034.04 | L65: 0 | M65: 140520435.7 | N65: 39545823.84 | O65: -6958350014 | P65: 276367137.2 | Q65: 253809787.9
A66: 2011-05-01 | B66: 259668932.4 | C66: 126.4 | D66: 17.4 | E66: 31 | F66: 21 | G66: 2011 | H66: 649016.3154 | J66: =WSkWh -> 6733221371 | K66: =LonHDD*C66 -> 8609674.038 | L66: =LonCDD*D66 -> 12656971.78 | M66: =MonthDays*E66 -> 145204450.2 | N66: =PeakDays*F66 -> 43708542.14 | O66: =Year*G66 -> -6958350014 | P66: =Population*H66 -> 276509609.6 | Q66: =SUM(J66:P66) -> 261560604.9
A67: 2011-06-01 | B67: 278903469.9 | C67: 27 | D67: 39.6 | E67: 30 | F67: 22 | G67: =YEAR(A67) -> 2011 | H67: 649350.8953 | J67: 6733221371 | K67: 1839091.765 | L67: 28805521.98 | M67: 140520435.7 | N67: 45789901.29 | O67: -6958350014 | P67: 276652155.4 | Q67: 268478463.3
A68: 2011-07-01 | B68: 342682880.6 | C68: 0 | D68: 160.9 | E68: 31 | F68: 20 | G68: 2011 | H68: 649685.6477 | J68: 6733221371 | K68: 0 | L68: 117040618.3 | M68: 145204450.2 | N68: 41627182.99 | O68: -6958350014 | P68: 276794774.7 | Q68: 355538383.4
A69: 2011-08-01 | B69: 311408950 | C69: 1.5 | D69: 82.9 | E69: 31 | F69: 22 | G69: 2011 | H69: 650020.5727 | J69: 6733221371 | K69: 102171.7647 | L69: 60302468.98 | M69: 145204450.2 | N69: 45789901.29 | O69: -6958350014 | P69: 276937467.5 | Q69: 303207816.9
A70: 2011-09-01 | B70: 270531205.4 | C70: 71.9 | D70: 29 | E70: 30 | F70: 21 | G70: 2011 | H70: 650355.6703 | J70: 6733221371 | K70: 4897433.254 | L70: 21094952.96 | M70: 140520435.7 | N70: 43708542.14 | O70: -6958350014 | P70: 277080233.9 | Q70: 262172955.1
A71: 2011-10-01 | B71: 257212837.9 | C71: 234.6 | D71: 0 | E71: 31 | F71: 20 | G71: 2011 | H71: 650690.9407 | J71: 6733221371 | K71: 15979664 | L71: 0 | M71: 145204450.2 | N71: 41627182.99 | O71: -6958350014 | P71: 277223073.9 | Q71: 254905728.3
A72: 2011-11-01 | B72: 256512690.7 | C72: 347.9 | D72: 0 | E72: 30 | F72: 22 | G72: 2011 | H72: 651026.3839 | J72: 6733221371 | K72: 23697037.96 | L72: 0 | M72: 140520435.7 | N72: 45789901.29 | O72: -6958350014 | P72: 277365987.5 | Q72: 262244719.6
A73: 2011-12-01 | B73: 277881320.2 | C73: 548.4 | D73: 0 | E73: 31 | F73: 20 | G73: 2011 | H73: 651362 | J73: 6733221371 | K73: 37353997.17 | L73: 0 | M73: 145204450.2 | N73: 41627182.99 | O73: -6958350014 | P73: 277508974.8 | Q73: 276565962.3
A74: 2012-01-01 | B74: 290374956 | C74: 644.8 | D74: 0 | E74: 31 | F74: 21 | G74: 2012 | H74: 651876.261 | J74: 6733221371 | K74: 43920235.92 | L74: 0 | M74: 145204450.2 | N74: 43708542.14 | O74: -6961810159 | P74: 277728072.7 | Q74: 281972513.9
A75: 2012-02-01 | B75: 265047531.9 | C75: 553 | D75: 0 | E75: 29 | F75: 20 | G75: 2012 | H75: 652390.928 | J75: 6733221371 | K75: 37667323.92 | L75: 0 | M75: 135836421.2 | N75: 41627182.99 | O75: -6961810159 | P75: 277947343.6 | Q75: 264489484.6
A76: 2012-03-01 | B76: 264589708.5 | C76: 331.1 | D76: 2.2 | E76: 31 | F76: 22 | G76: 2012 | H76: 652906.0014 | J76: 6733221371 | K76: 22552714.19 | L76: 1600306.776 | M76: 145204450.2 | N76: 45789901.29 | O76: -6961810159 | P76: 278166787.6 | Q76: 264725373
A77: 2012-04-01 | B77: 241856924.9 | C77: 334.6 | D77: 0 | E77: 30 | F77: 19 | G77: 2012 | H77: 653421.4815 | J77: 6733221371 | K77: 22791114.98 | L77: 0 | M77: 140520435.7 | N77: 39545823.84 | O77: -6961810159 | P77: 278386404.8 | Q77: 252654992.3
A78: 2012-05-01 | B78: 264293073.5 | C78: 87.2 | D78: 28.5 | E78: 31 | F78: 22 | G78: 2012 | H78: 653937.3685 | J78: 6733221371 | K78: 5939585.254 | L78: 20731246.88 | M78: 145204450.2 | N78: 45789901.29 | O78: -6961810159 | P78: 278606195.5 | Q78: 267682592.1
A79: 2012-06-01 | B79: 290940514.1 | C79: 28.2 | D79: 81.7 | E79: 30 | F79: 21 | G79: 2012 | H79: 654453.6628 | J79: 6733221371 | K79: 1920829.176 | L79: 59429574.38 | M79: 140520435.7 | N79: 43708542.14 | O79: -6961810159 | P79: 278826159.7 | Q79: 295816754
A80: 2012-07-01 | B80: 340196199.4 | C80: 0 | D80: 161 | E80: 31 | F80: 21 | G80: 2012 | H80: 654970.3647 | J80: 6733221371 | K80: 0 | L80: 117113359.5 | M80: 145204450.2 | N80: 43708542.14 | O80: -6961810159 | P80: 279046297.5 | Q80: 356483862.4
A81: 2012-08-01 | B81: 304061556.8 | C81: 7.8 | D81: 79.6 | E81: 31 | F81: 22 | G81: 2012 | H81: 655487.4746 | J81: 6733221371 | K81: 531293.1764 | L81: 57902008.82 | M81: 145204450.2 | N81: 45789901.29 | O81: -6961810159 | P81: 279266609.2 | Q81: 300105475.6
A82: 2012-09-01 | B82: 261393756 | C82: 103.4 | D82: 27.7 | E82: 30 | F82: 19 | G82: 2012 | H82: 656004.9927 | J82: 6733221371 | K82: 7043040.313 | L82: 20149317.14 | M82: 140520435.7 | N82: 39545823.84 | O82: -6961810159 | P82: 279487094.7 | Q82: 258156924.7
A83: 2012-10-01 | B83: 253052401.8 | C83: 250.5 | D83: 0.7 | E83: 31 | F83: 22 | G83: 2012 | H83: 656522.9195 | J83: 6733221371 | K83: 17062684.7 | L83: 509188.5198 | M83: 145204450.2 | N83: 45789901.29 | O83: -6961810159 | P83: 279707754.4 | Q83: 259685192.1
A84: 2012-11-01 | B84: 260224800 | C84: 420.4 | D84: 0 | E84: 30 | F84: 22 | G84: 2012 | H84: 657041.2551 | J84: 6733221371 | K84: 28635339.92 | L84: 0 | M84: 140520435.7 | N84: 45789901.29 | O84: -6961810159 | P84: 279928588.3 | Q84: 266285478.1
A85: 2012-12-01 | B85: 271295249.8 | C85: 535.9 | D85: 0 | E85: 31 | F85: 19 | G85: 2012 | H85: 657560 | J85: 6733221371 | K85: 36502565.8 | L85: 0 | M85: 145204450.2 | N85: 39545823.84 | O85: -6961810159 | P85: 280149596.5 | Q85: 272813649.3
A86: 2013-01-01 | B86: 288991701.3 | C86: 657.4 | D86: 0 | E86: 31 | F86: 22 | G86: 2013 | H86: 657954.1149 | J86: 6733221371 | K86: 44778478.74 | L86: 0 | M86: 145204450.2 | N86: 45789901.29 | O86: -6965270303 | P86: 280317506.8 | Q86: 284041405.8
A87: 2013-02-01 | B87: 262888751 | C87: 657 | D87: 0 | E87: 28 | F87: 19 | G87: 2013 | H87: 658348.466 | J87: 6733221371 | K87: 44751232.94 | L87: 0 | M87: 131152406.6 | N87: 39545823.84 | O87: -6965270303 | P87: 280485517.8 | Q87: 263886050
A88: 2013-03-01 | B88: 276366259.2 | C88: 581.9 | D88: 0 | E88: 31 | F88: 20 | G88: 2013 | H88: 658743.0534 | J88: 6733221371 | K88: 39635833.25 | L88: 0 | M88: 145204450.2 | N88: 41627182.99 | O88: -6965270303 | P88: 280653629.5 | Q88: 275072164.7
A89: 2013-04-01 | B89: 251523569.8 | C89: 362.2 | D89: 0 | E89: 30 | F89: 21 | G89: 2013 | H89: 659137.8774 | J89: 6733221371 | K89: 24671075.45 | L89: 0 | M89: 140520435.7 | N89: 43708542.14 | O89: -6965270303 | P89: 280821841.9 | Q89: 257672963.9
A90: 2013-05-01 | B90: 259256155.3 | C90: 122.2 | D90: 27 | E90: 31 | F90: 22 | G90: 2013 | H90: 659532.938 | J90: 6733221371 | K90: 8323593.097 | L90: 19640128.62 | M90: 145204450.2 | N90: 45789901.29 | O90: -6965270303 | P90: 280990155.2 | Q90: 267899297.1
A91: 2013-06-01 | B91: 276460042.3 | C91: 41.1 | D91: 52.7 | E91: 30 | F91: 20 | G91: 2013 | H91: 659928.2353 | J91: 6733221371 | K91: 2799506.353 | L91: 38334621.42 | M91: 140520435.7 | N91: 41627182.99 | O91: -6965270303 | P91: 281158569.3 | Q91: 272391384.5
A92: 2013-07-01 | B92: 321327185.6 | C92: 7.1 | D92: 112.9 | E92: 31 | F92: 22 | G92: 2013 | H92: 660323.7696 | J92: 6733221371 | K92: 483613.0196 | L92: 82124834.12 | M92: 145204450.2 | N92: 45789901.29 | O92: -6965270303 | P92: 281327084.4 | Q92: 322880951.8
A93: 2013-08-01 | B93: 294037259.6 | C93: 18.4 | D93: 63.4 | E93: 31 | F93: 21 | G93: 2013 | H93: 660719.541 | J93: 6733221371 | K93: 1253306.98 | L93: 46117931.65 | M93: 145204450.2 | N93: 43708542.14 | O93: -6965270303 | P93: 281495700.5 | Q93: 285731000.2
A94: 2013-09-01 | B94: 263616852.7 | C94: 94.9 | D94: 26 | E94: 30 | F94: 20 | G94: 2013 | H94: 661115.5496 | J94: 6733221371 | K94: 6464066.98 | L94: 18912716.45 | M94: 140520435.7 | N94: 41627182.99 | O94: -6965270303 | P94: 281664417.6 | Q94: 257139888.5
A95: 2013-10-01 | B95: 260620451.1 | C95: 226.6 | D95: 2.6 | E95: 31 | F95: 22 | G95: 2013 | H95: 661511.7955 | J95: 6733221371 | K95: 15434747.92 | L95: 1891271.645 | M95: 145204450.2 | N95: 45789901.29 | O95: -6965270303 | P95: 281833235.9 | Q95: 258104675.7
A96: 2013-11-01 | B96: 264051626 | C96: 492.1 | D96: 0 | E96: 30 | F96: 21 | G96: 2013 | H96: 661908.2789 | J96: 6733221371 | K96: 33519150.27 | L96: 0 | M96: 140520435.7 | N96: 43708542.14 | O96: -6965270303 | P96: 282002155.3 | Q96: 267701352.2
A97: 2013-12-01 | B97: 286523069.5 | C97: 687.7 | D97: 0 | E97: 31 | F97: 20 | G97: 2013 | H97: 662305 | J97: 6733221371 | K97: 46842348.39 | L97: 0 | M97: 145204450.2 | N97: 41627182.99 | O97: -6965270303 | P97: 282171176 | Q97: 283796226.3
A98: 2014-01-01 | B98: 305527740.5 | C98: 843.9 | D98: 0 | E98: 31 | F98: 22 | G98: 2014 | H98: 662715.6798 | J98: =WSkWh -> 6733221371 | K98: =LonHDD*C98 -> 57481834.82 | L98: =LonCDD*D98 -> 0 | M98: =MonthDays*E98 -> 145204450.2 | N98: =PeakDays*F98 -> 45789901.29 | O98: =Year*G98 -> -6968730447 | P98: =Population*H98 -> 282346143.8 | Q98: =SUM(J98:P98) -> 295313254.6
A99: 2014-02-01 | B99: 270783682.4 | C99: 790 | D99: 0 | E99: 28 | F99: 19 | G99: 2014 | H99: 663126.6143 | J99: 6733221371 | K99: 53810462.74 | L99: 0 | M99: 131152406.6 | N99: 39545823.84 | O99: -6968730447 | P99: 282521220 | Q99: 271520837.8
A100: 2014-03-01 | B100: 288299673 | C100: 716.8 | D100: 0 | E100: 31 | F100: 21 | G100: 2014 | H100: 663537.8036 | J100: 6733221371 | K100: 48824480.62 | L100: 0 | M100: 145204450.2 | N100: 43708542.14 | O100: -6968730447 | P100: 282696404.8 | Q100: 284924802.3
A101: 2014-04-01 | B101: 244855513 | C101: 353.8 | D101: 0 | E101: 30 | F101: 20 | G101: 2014 | H101: 663949.2479 | J101: 6733221371 | K101: 24098913.57 | L101: 0 | M101: 140520435.7 | N101: 41627182.99 | O101: -6968730447 | P101: 282871698.2 | Q101: 253609155
A102: 2014-05-01 | B102: 251891961.5 | C102: 142.5 | D102: 12.2 | E102: 31 | F102: 21 | G102: 2014 | H102: 664360.9473 | J102: 6733221371 | K102: 9706317.646 | L102: 8874428.487 | M102: 145204450.2 | N102: 43708542.14 | O102: -6968730447 | P102: 283047100.4 | Q102: 255031763.4
A103: 2014-06-01 | B103: 283978631.8 | C103: 19.7 | D103: 71.9 | E103: 30 | F103: 21 | G103: 2014 | H103: 664772.902 | J103: 6733221371 | K103: 1341855.843 | L103: 52300935.1 | M103: 140520435.7 | N103: 43708542.14 | O103: -6968730447 | P103: 283222611.3 | Q103: 285585304.5
A104: 2014-07-01 | B104: 286546351.3 | C104: 21.5 | D104: 47.6 | E104: 31 | F104: 22 | G104: 2014 | H104: 665185.1121 | J104: 6733221371 | K104: 1464461.961 | L104: 34624819.34 | M104: 145204450.2 | N104: 45789901.29 | O104: -6968730447 | P104: 283398231 | Q104: 274972788.3
A105: 2014-08-01 | B105: 283846898.6 | C105: 14.5 | D105: 53.4 | E105: 31 | F105: 20 | G105: 2014 | H105: 665597.5779 | J105: 6733221371 | K105: 987660.3921 | L105: 38843809.94 | M105: 145204450.2 | N105: 41627182.99 | O105: -6968730447 | P105: 283573959.6 | Q105: 274727987.6
A106: 2014-09-01 | B106: 261882965.5 | C106: 86.2 | D106: 17.6 | E106: 30 | F106: 21 | G106: 2014 | H106: 666010.2994 | J106: 6733221371 | K106: 5871470.745 | L106: 12802454.21 | M106: 140520435.7 | N106: 43708542.14 | O106: -6968730447 | P106: 283749797.2 | Q106: 251143624.5
A107: 2014-10-01 | B107: 246291396.5 | C107: 247.1 | D107: 0 | E107: 31 | F107: 22 | G107: 2014 | H107: 666423.2768 | J107: 6733221371 | K107: 16831095.37 | L107: 0 | M107: 145204450.2 | N107: 45789901.29 | O107: -6968730447 | P107: 283925743.8 | Q107: 256242115.2
A108: 2014-11-01 | B108: 259203542.6 | C108: 503.7 | D108: 0 | E108: 30 | F108: 20 | G108: 2014 | H108: 666836.5103 | J108: 6733221371 | K108: 34309278.59 | L108: 0 | M108: 140520435.7 | N108: 41627182.99 | O108: -6968730447 | P108: 284101799.5 | Q108: 265049621.3
A109: 2014-12-01 | B109: 264968874.8 | C109: 567.5 | D109: 0 | E109: 31 | F109: 21 | G109: 2014 | H109: 667250 | J109: 6733221371 | K109: 38654984.31 | L109: 0 | M109: 145204450.2 | N109: 43708542.14 | O109: -6968730447 | P109: 284277964.4 | Q109: 276336865.6
A110: 2015-01-01 | B110: 295598619 | C110: 812.9 | D110: 0 | E110: 31 | F110: 21 | G110: 2015 | H110: 667637.0958 | J110: 6733221371 | K110: 55370285.01 | L110: 0 | M110: 145204450.2 | N110: 43708542.14 | O110: -6972190591 | P110: 284442884.3 | Q110: 289756942
A111: 2015-02-01 | B111: 273784130.8 | C111: 872.9 | D111: 0 | E111: 28 | F111: 19 | G111: 2015 | H111: 668024.4162 | J111: 6733221371 | K111: 59457155.6 | L111: 0 | M111: 131152406.6 | N111: 39545823.84 | O111: -6972190591 | P111: 284607899.9 | Q111: 275794066.3
A112: 2015-03-01 | B112: 274934256.1 | C112: 640.1 | D112: 0 | E112: 31 | F112: 22 | G112: 2015 | H112: 668411.9613 | J112: 6733221371 | K112: 43600097.72 | L112: 0 | M112: 145204450.2 | N112: 45789901.29 | O112: -6972190591 | P112: 284773011.2 | Q112: 280398240.7
A113: 2015-04-01 | B113: 243458062.7 | C113: 336.6 | D113: 0 | E113: 30 | F113: 20 | G113: 2015 | H113: 668799.7312 | J113: 6733221371 | K113: 22927344 | L113: 0 | M113: 140520435.7 | N113: 41627182.99 | O113: -6972190591 | P113: 284938218.3 | Q113: 251043961.3
A114: 2015-05-01 | B114: 259161560.2 | C114: 104.7 | D114: 34.9 | E114: 31 | F114: 20 | G114: 2015 | H114: 669187.7261 | J114: 6733221371 | K114: 7131589.176 | L114: 25386684.77 | M114: 145204450.2 | N114: 41627182.99 | O114: -6972190591 | P114: 285103521.3 | Q114: 265484208.7
A115: 2015-06-01 | B115: 267546627.5 | C115: 29.7 | D115: 30.4 | E115: 30 | F115: 22 | G115: 2015 | H115: 669575.946 | J115: 6733221371 | K115: 2023000.941 | L115: 22113330 | M115: 140520435.7 | N115: 45789901.29 | O115: -6972190591 | P115: 285268920.1 | Q115: 256746368.3
A116: 2015-07-01 | B116: 301589192.5 | C116: 7 | D116: 76.4 | E116: 31 | F116: 22 | G116: 2015 | H116: 669964.3912 | J116: 6733221371 | K116: 476801.5686 | L116: 55574289.87 | M116: 145204450.2 | N116: 45789901.29 | O116: -6972190591 | P116: 285434414.9 | Q116: 293510638.1
A117: 2015-08-01 | B117: 290629200.9 | C117: 14 | D117: 61.6 | E117: 31 | F117: 20 | G117: 2015 | H117: 670353.0617 | J117: 6733221371 | K117: 953603.1372 | L117: 44808589.74 | M117: 145204450.2 | N117: 41627182.99 | O117: -6972190591 | P117: 285600005.7 | Q117: 279224612.1
A118: 2015-09-01 | B118: 282605551.9 | C118: 34.6 | D118: 54.2 | E118: 30 | F118: 21 | G118: 2015 | H118: 670741.9578 | J118: 6733221371 | K118: 2356762.039 | L118: 39425739.67 | M118: 140520435.7 | N118: 43708542.14 | O118: -6972190591 | P118: 285765692.6 | Q118: 272807952.4
A119: 2015-10-01 | B119: 248709445 | C119: 254.9 | D119: 0 | E119: 31 | F119: 21 | G119: 2015 | H119: 671131.0794 | J119: 6733221371 | K119: 17362388.55 | L119: 0 | M119: 145204450.2 | N119: 43708542.14 | O119: -6972190591 | P119: 285931475.6 | Q119: 253237636.8
A120: 2015-11-01 | B120: 248717807.7 | C120: 353.2 | D120: 0 | E120: 30 | F120: 21 | G120: 2015 | H120: 671520.4268 | J120: 6733221371 | K120: 24058044.86 | L120: 0 | M120: 140520435.7 | N120: 43708542.14 | O120: -6972190591 | P120: 286097354.8 | Q120: 255415157.7
A121: 2015-12-01 | B121: 260362308.7 | C121: 447.8 | D121: 0 | E121: 31 | F121: 21 | G121: 2015 | H121: 671910 | J121: 6733221371 | K121: 30501677.49 | L121: 0 | M121: 145204450.2 | N121: 43708542.14 | O121: -6972190591 | P121: 286263330.2 | Q121: 266708780.3

Sheet Predicted Monthly Data Summ
A1: Date | B1: Year | C1: WSkWh | D1: Predicted Value | E1: Absolute % Error
A2: 2006-01-01 | B2: =YEAR(A2) -> 2006 | C2: 293367364.2 | D2: 287848525.6 | E2: =ABS(D2-C2)/C2 -> 0.01881204002
A3: 2006-02-01 | B3: 2006 | C3: 273298001.5 | D3: 275608027.1 | E3: 0.00845240567
A4: 2006-03-01 | B4: 2006 | C4: 286819878.5 | D4: 291746029.5 | E4: 0.01717506837
A5: 2006-04-01 | B5: 2006 | C5: 252565044.2 | D5: 259146769.2 | E5: 0.02605952465
A6: 2006-05-01 | B6: 2006 | C6: 269392545 | D6: 279847181.1 | E6: 0.03880818625
A7: 2006-06-01 | B7: 2006 | C7: 287975078.9 | D7: 282448893.4 | E7: 0.01918980451
A8: 2006-07-01 | B8: 2006 | C8: 333043063.7 | D8: 346508631.5 | E8: 0.04043191167
A9: 2006-08-01 | B9: 2006 | C9: 312185503.2 | D9: 303336608.8 | E9: 0.02834498825
A10: 2006-09-01 | B10: 2006 | C10: 260653838.6 | D10: 255040339.1 | E10: 0.02153622427
A11: 2006-10-01 | B11: 2006 | C11: 270564368.4 | D11: 273115771.7 | E11: 0.009429930641
A12: 2006-11-01 | B12: 2006 | C12: 272439193.5 | D12: 275321439.1 | E12: 0.01057940893
A13: 2006-12-01 | B13: 2006 | C13: 288148645.8 | D13: 282689069.5 | E13: 0.01894708278
A14: 2007-01-01 | B14: 2007 | C14: 300073560 | D14: 295336210.9 | E14: 0.01578729269
A15: 2007-02-01 | B15: 2007 | C15: 289732838.4 | D15: 284219228.8 | E15: 0.01902997825
A16: 2007-03-01 | B16: 2007 | C16: 288143354.6 | D16: 286727053.5 | E16: 0.004915265518
A17: 2007-04-01 | B17: 2007 | C17: 260543396.5 | D17: 265255125 | E17: 0.01808423714
A18: 2007-05-01 | B18: 2007 | C18: 268501831.2 | D18: 276477719 | E18: 0.02970515233
A19: 2007-06-01 | B19: 2007 | C19: 304679127 | D19: 296935633.6 | E19: 0.02541524082
A20: 2007-07-01 | B20: 2007 | C20: 302183688.8 | D20: 301902740.7 | E20: 0.0009297262042
A21: 2007-08-01 | B21: 2007 | C21: 317756807 | D21: 316802734.8 | E21: 0.003002523144
A22: 2007-09-01 | B22: 2007 | C22: 280873709.7 | D22: 269968632.6 | E22: 0.03882555285
A23: 2007-10-01 | B23: 2007 | C23: 275821162.1 | D23: 277207381.1 | E23: 0.005025788892
A24: 2007-11-01 | B24: 2007 | C24: 274311353.6 | D24: 278674272.4 | E24: 0.01590498774
A25: 2007-12-01 | B25: 2007 | C25: 294695847.8 | D25: 290015554.3 | E25: 0.01588177615
A26: 2008-01-01 | B26: 2008 | C26: 301541879.9 | D26: 291686283 | E26: 0.03268400692
A27: 2008-02-01 | B27: 2008 | C27: 286013196.4 | D27: 281912565.4 | E27: 0.0143372089
A28: 2008-03-01 | B28: 2008 | C28: 285378792.3 | D28: 284871119.7 | E28: 0.001778943006
A29: 2008-04-01 | B29: 2008 | C29: 255049710.7 | D29: 261866293 | E29: 0.02672648487
A30: 2008-05-01 | B30: 2008 | C30: 248546059.2 | D30: 262281522.6 | E30: 0.05526325167
A31: 2008-06-01 | B31: 2008 | C31: 287944901.3 | D31: 291902451.9 | E31: 0.01374412446
A32: 2008-07-01 | B32: 2008 | C32: 319461681.3 | D32: 319670674.4 | E32: 0.0006542041785
A33: 2008-08-01 | B33: 2008 | C33: 293716156.3 | D33: 284332650 | E33: 0.03194753185
A34: 2008-09-01 | B34: =YEAR(A34) -> 2008 | C34: 283916906.4 | D34: 261728992.4 | E34: =ABS(D34-C34)/C34 -> 0.07814932265
A35: 2008-10-01 | B35: 2008 | C35: 262065574 | D35: 268714173.4 | E35: 0.025369984
A36: 2008-11-01 | B36: 2008 | C36: 268677317.4 | D36: 272343550.2 | E36: 0.01364548685
A37: 2008-12-01 | B37: 2008 | C37: 298039893.5 | D37: 293029108.2 | E37: 0.01681246515
A38: 2009-01-01 | B38: 2009 | C38: 307276829.9 | D38: 301803492.9 | E38: 0.01781239725
A39: 2009-02-01 | B39: 2009 | C39: 264065998.4 | D39: 267521698.7 | E39: 0.01308650253
A40: 2009-03-01 | B40: 2009 | C40: 278082458 | D40: 282478840.3 | E40: 0.01580963547
A41: 2009-04-01 | B41: 2009 | C41: 250781054.8 | D41: 260614843.1 | E41: 0.03921264411
A42: 2009-05-01 | B42: 2009 | C42: 250742745.1 | D42: 255071476.2 | E42: 0.01726363438
A43: 2009-06-01 | B43: 2009 | C43: 265479494.8 | D43: 270885824.3 | E43: 0.02036439571
A44: 2009-07-01 | B44: 2009 | C44: 274906308.3 | D44: 269192629.5 | E44: 0.02078409498
A45: 2009-08-01 | B45: 2009 | C45: 300712862.7 | D45: 295857665.6 | E45: 0.0161456248
A46: 2009-09-01 | B46: 2009 | C46: 263969677.2 | D46: 256219850.2 | E46: 0.02935877747
A47: 2009-10-01 | B47: 2009 | C47: 258962858.8 | D47: 265073784.2 | E47: 0.02359769061
A48: 2009-11-01 | B48: 2009 | C48: 258162607.6 | D48: 264239578.4 | E48: 0.02353931431
A49: 2009-12-01 | B49: 2009 | C49: 292766418 | D49: 288105995.3 | E49: 0.01591857002
A50: 2010-01-01 | B50: 2010 | C50: 301373371.7 | D50: 289239909.3 | E50: 0.0402605656
A51: 2010-02-01 | B51: 2010 | C51: 268164437.3 | D51: 266465619.5 | E51: 0.006334985401
A52: 2010-03-01 | B52: 2010 | C52: 269584961.7 | D52: 276514733.2 | E52: 0.02570533387
A53: 2010-04-01 | B53: 2010 | C53: 242909549.6 | D53: 251174053 | E53: 0.03402296608
A54: 2010-05-01 | B54: 2010 | C54: 269054896.2 | D54: 273541525.6 | E54: 0.01667551643
A55: 2010-06-01 | B55: 2010 | C55: 288397187.6 | D55: 282969038.4 | E55: 0.01882178294
A56: 2010-07-01 | B56: 2010 | C56: 334725938.1 | D56: 337015332.3 | E56: 0.00683960815
A57: 2010-08-01 | B57: 2010 | C57: 325611196.9 | D57: 331373904.3 | E57: 0.01769812394
A58: 2010-09-01 | B58: 2010 | C58: 264224372 | D58: 261423746.1 | E58: 0.01059942281
A59: 2010-10-01 | B59: 2010 | C59: 254480106.5 | D59: 256972716.4 | E59: 0.009794910489
A60: 2010-11-01 | B60: 2010 | C60: 262982872.6 | D60: 268461027.4 | E60: 0.02083084255
A61: 2010-12-01 | B61: 2010 | C61: 293281443.4 | D61: 291642177.9 | E61: 0.005589393798
A62: 2011-01-01 | B62: 2011 | C62: 300666159.3 | D62: 292053021.2 | E62: 0.02864684896
A63: 2011-02-01 | B63: 2011 | C63: 269236699.8 | D63: 267820015.1 | E63: 0.005261856063
A64: 2011-03-01 | B64: 2011 | C64: 282763557.6 | D64: 285013266.1 | E64: 0.007956147463
A65: 2011-04-01 | B65: 2011 | C65: 251072267.6 | D65: 253809787.9 | E65: 0.01090331643
A66: 2011-05-01 | B66: =YEAR(A66) -> 2011 | C66: 259668932.4 | D66: 261560604.9 | E66: =ABS(D66-C66)/C66 -> 0.007284939801
A67: 2011-06-01 | B67: 2011 | C67: 278903469.9 | D67: 268478463.3 | E67: 0.03737854774
A68: 2011-07-01 | B68: 2011 | C68: 342682880.6 | D68: 355538383.4 | E68: 0.03751428354
A69: 2011-08-01 | B69: 2011 | C69: 311408950 | D69: 303207816.9 | E69: 0.02633557269
A70: 2011-09-01 | B70: 2011 | C70: 270531205.4 | D70: 262172955.1 | E70: 0.03089569763
A71: 2011-10-01 | B71: 2011 | C71: 257212837.9 | D71: 254905728.3 | E71: 0.008969651844
A72: 2011-11-01 | B72: 2011 | C72: 256512690.7 | D72: 262244719.6 | E72: 0.02234598563
A73: 2011-12-01 | B73: 2011 | C73: 277881320.2 | D73: 276565962.3 | E73: 0.004733523975
A74: 2012-01-01 | B74: 2012 | C74: 290374956 | D74: 281972513.9 | E74: 0.02893652476
A75: 2012-02-01 | B75: 2012 | C75: 265047531.9 | D75: 264489484.6 | E75: 0.002105461303
A76: 2012-03-01 | B76: 2012 | C76: 264589708.5 | D76: 264725373 | E76: 0.0005127353961
A77: 2012-04-01 | B77: 2012 | C77: 241856924.9 | D77: 252654992.3 | E77: 0.04464650895
A78: 2012-05-01 | B78: 2012 | C78: 264293073.5 | D78: 267682592.1 | E78: 0.01282484835
A79: 2012-06-01 | B79: 2012 | C79: 290940514.1 | D79: 295816754 | E79: 0.01676026421
A80: 2012-07-01 | B80: 2012 | C80: 340196199.4 | D80: 356483862.4 | E80: 0.04787726323
A81: 2012-08-01 | B81: 2012 | C81: 304061556.8 | D81: 300105475.6 | E81: 0.0130107906
A82: 2012-09-01 | B82: 2012 | C82: 261393756 | D82: 258156924.7 | E82: 0.01238297128
A83: 2012-10-01 | B83: 2012 | C83: 253052401.8 | D83: 259685192.1 | E83: 0.0262111334
A84: 2012-11-01 | B84: 2012 | C84: 260224800 | D84: 266285478.1 | E84: 0.02329016341
A85: 2012-12-01 | B85: 2012 | C85: 271295249.8 | D85: 272813649.3 | E85: 0.005596852517
A86: 2013-01-01 | B86: 2013 | C86: 288991701.3 | D86: 284041405.8 | E86: 0.017129542
A87: 2013-02-01 | B87: 2013 | C87: 262888751 | D87: 263886050 | E87: 0.00379361615
A88: 2013-03-01 | B88: 2013 | C88: 276366259.2 | D88: 275072164.7 | E88: 0.004682534368
A89: 2013-04-01 | B89: 2013 | C89: 251523569.8 | D89: 257672963.9 | E89: 0.02444858018
A90: 2013-05-01 | B90: 2013 | C90: 259256155.3 | D90: 267899297.1 | E90: 0.03333823177
A91: 2013-06-01 | B91: 2013 | C91: 276460042.3 | D91: 272391384.5 | E91: 0.01471698335
A92: 2013-07-01 | B92: 2013 | C92: 321327185.6 | D92: 322880951.8 | E92: 0.004835464417
A93: 2013-08-01 | B93: 2013 | C93: 294037259.6 | D93: 285731000.2 | E93: 0.02824900292
A94: 2013-09-01 | B94: 2013 | C94: 263616852.7 | D94: 257139888.5 | E94: 0.02456961362
A95: 2013-10-01 | B95: 2013 | C95: 260620451.1 | D95: 258104675.7 | E95: 0.009653023901
A96: 2013-11-01 | B96: 2013 | C96: 264051626 | D96: 267701352.2 | E96: 0.01382201736
A97: 2013-12-01 | B97: 2013 | C97: 286523069.5 | D97: 283796226.3 | E97: 0.009517010766
A98: 2014-01-01 | B98: =YEAR(A98) -> 2014 | C98: 305527740.5 | D98: 295313254.6 | E98: =ABS(D98-C98)/C98 -> 0.03343226995
A99: 2014-02-01 | B99: 2014 | C99: 270783682.4 | D99: 271520837.8 | E99: 0.002722303543
A100: 2014-03-01 | B100: 2014 | C100: 288299673 | D100: 284924802.3 | E100: 0.01170612058
A101: 2014-04-01 | B101: 2014 | C101: 244855513 | D101: 253609155 | E101: 0.03575023443
A102: 2014-05-01 | B102: 2014 | C102: 251891961.5 | D102: 255031763.4 | E102: 0.01246487535
A103: 2014-06-01 | B103: 2014 | C103: 283978631.8 | D103: 285585304.5 | E103: 0.005657724039
A104: 2014-07-01 | B104: 2014 | C104: 286546351.3 | D104: 274972788.3 | E104: 0.04038984614
A105: 2014-08-01 | B105: 2014 | C105: 283846898.6 | D105: 274727987.6 | E105: 0.03212616013
A106: 2014-09-01 | B106: 2014 | C106: 261882965.5 | D106: 251143624.5 | E106: 0.04100816928
A107: 2014-10-01 | B107: 2014 | C107: 246291396.5 | D107: 256242115.2 | E107: 0.04040221794
A108: 2014-11-01 | B108: 2014 | C108: 259203542.6 | D108: 265049621.3 | E108: 0.02255400767
A109: 2014-12-01 | B109: 2014 | C109: 264968874.8 | D109: 276336865.6 | E109: 0.04290311737
A110: 2015-01-01 | B110: 2015 | C110: 295598619 | D110: 289756942 | E110: 0.01976219329
A111: 2015-02-01 | B111: 2015 | C111: 273784130.8 | D111: 275794066.3 | E111: 0.007341314618
A112: 2015-03-01 | B112: 2015 | C112: 274934256.1 | D112: 280398240.7 | E112: 0.01987378637
A113: 2015-04-01 | B113: 2015 | C113: 243458062.7 | D113: 251043961.3 | E113: 0.03115895389
A114: 2015-05-01 | B114: 2015 | C114: 259161560.2 | D114: 265484208.7 | E114: 0.02439655231
A115: 2015-06-01 | B115: 2015 | C115: 267546627.5 | D115: 256746368.3 | E115: 0.04036776412
A116: 2015-07-01 | B116: 2015 | C116: 301589192.5 | D116: 293510638.1 | E116: 0.02678661744
A117: 2015-08-01 | B117: 2015 | C117: 290629200.9 | D117: 279224612.1 | E117: 0.03924102873
A118: 2015-09-01 | B118: 2015 | C118: 282605551.9 | D118: 272807952.4 | E118: 0.03466881449
A119: 2015-10-01 | B119: 2015 | C119: 248709445 | D119: 253237636.8 | E119: 0.01820675434
A120: 2015-11-01 | B120: 2015 | C120: 248717807.7 | D120: 255415157.7 | E120: 0.02692750535
A121: 2015-12-01 | B121: 2015 | C121: 260362308.7 | D121: 266708780.3 | E121: 0.02437553885
E122: =AVERAGE(E2:E121) -> 0.02094012688

Sheet PredictedAnnualDataSumm
A2: Annual Predicted vs. Actual WSkWh
B3: WSkWh | C3: Predicted Value | D3: Absolute % Error
A4: 2006 | B4: 3400452526 | C4: 3412657286 | D4: 0.003589157594
A5: 2007 | B5: 3457316677 | C5: 3439522287 | D5: 0.005146878828
A6: 2008 | B6: 3390352069 | C6: 3374339384 | D6: 0.004723015195
A7: 2009 | B7: 3265909314 | C7: 3277065679 | D7: 0.003416005773
A8: 2010 | B8: 3374790334 | C8: 3386793783 | D8: 0.003556798628
A9: 2011 | B9: 3358540971 | C9: 3343370724 | D9: 0.004516915926
A10: 2012 | B10: 3307326673 | C10: 3340872292 | D10: 0.01014282001
A11: 2013 | B11: 3305662923 | C11: 3296317361 | D11: 0.002827137234
A12: 2014 | B12: 3248077232 | C12: 3244458120 | D12: 0.001114231961
A13: 2015 | B13: 3247096763 | C13: 3240128565 | D13: 0.002145977975
C14: Mean Absolute Percentage Error (Annual) | D14: =AVERAGE(D4:D13) -> 0.004117893913
C15: Mean Absolute Percentage Error (Monthly) | D15: 0.02094012688

Sheet PredictedAnnualDataSumm2
B3: WSkWh | C3: Predicted Value
A4: 2006 | B4: 3400452526 | C4: 3412657286
A5: 2007 | B5: 3457316677 | C5: 3439522287
A6: 2008 | B6: 3390352069 | C6: 3374339384
A7: 2009 | B7: 3265909314 | C7: 3277065679
A8: 2010 | B8: 3374790334 | C8: 3386793783
A9: 2011 | B9: 3358540971 | C9: 3343370724
A10: 2012 | B10: 3307326673 | C10: 3340872292
A11: 2013 | B11: 3305662923 | C11: 3296317361
A12: 2014 | B12: 3248077232 | C12: 3244458120
A13: 2015 | B13: 3247096763 | C13: 3240128565

Sheet Normalized Monthly Data
A1: Date | B1: WSkWh | C1: LonHDD | D1: LonCDD | E1: MonthDays | F1: PeakDays | G1: Year | H1: Population | J1: WSkWh | K1: LonHDD | L1: LonCDD | M1: MonthDays | N1: PeakDays | O1: Year | P1: Population | Q1: Normalized Value
A2: 2006-01-01 | B2: 293367364.2 | C2: 554.7 | D2: 0 | E2: 31 | F2: 21 | G2: =YEAR(A2) -> 2006 | H2: 631343.7972 | J2: =WSkWh -> 6733221371 | K2: =LonHDD*C2 -> 37783118.58 | L2: =LonCDD*D2 -> 0 | M2: =MonthDays*E2 -> 145204450.2 | N2: =PeakDays*F2 -> 43708542.14 | O2: =Year*G2 -> -6941049293 | P2: =Population*H2 -> 268980336.5 | Q2: =SUM(J2:P2) -> 287848525.6
A3: 2006-02-01 | B3: 273298001.5 | C3: 609.3 | D3: 0 | E3: 28 | F3: 20 | G3: =YEAR(A3) -> 2006 | H3: 631751.858 | J3: 6733221371 | K3: 41502170.82 | L3: 0 | M3: 131152406.6 | N3: 41627182.99 | O3: -6941049293 | P3: 269154188.4 | Q3: 275608027.1
A4: 2006-03-01 | B4: 286819878.5 | C4: 545.7 | D4: 0 | E4: 31 | F4: 23 | G4: 2006 | H4: 632160.1825 | J4: 6733221371 | K4: 37170088 | L4: 0 | M4: 145204450.2 | N4: 47871260.44 | O4: -6941049293 | P4: 269328152.7 | Q4: 291746029.5
A5: 2006-04-01 | B5: 252565044.2 | C5: 286.1 | D5: 0 | E5: 30 | F5: 18 | G5: 2006 | H5: 632568.771 | J5: 6733221371 | K5: 19487561.25 | L5: 0 | M5: 140520435.7 | N5: 37464464.69 | O5: -6941049293 | P5: 269502229.4 | Q5: 259146769.2
A6: 2006-05-01 | B6: 269392545 | C6: 151.9 | D6: 22.9 | E6: 31 | F6: 22 | G6: 2006 | H6: 632977.6235 | J6: 6733221371 | K6: 10346594.04 | L6: 16657738.72 | M6: 145204450.2 | N6: 45789901.29 | O6: -6941049293 | P6: 269676418.6 | Q6: 279847181.1
A7: 2006-06-01 | B7: 287975078.9 | C7: 26.7 | D7: 44.4 | E7: 30 | F7: 22 | G7: 2006 | H7: 633386.7403 | J7: 6733221371 | K7: 1818657.412 | L7: 32297100.4 | M7: 140520435.7 | N7: 45789901.29 | O7: -6941049293 | P7: 269850720.4 | Q7: 282448893.4
A8: 2006-07-01 | B8: 333043063.7 | C8: 3.3 | D8: 133.7 | E8: 31 | F8: 20 | G8: 2006 | H8: 633796.1215 | J8: 6733221371 | K8: 224777.8823 | L8: 97255007.27 | M8: 145204450.2 | N8: 41627182.99 | O8: -6941049293 | P8: 270025134.9 | Q8: 346508631.5
A9: 2006-08-01 | B9: 312185503.2 | C9: 5.3 | D9: 68.2 | E9: 31 | F9: 22 | G9: 2006 | H9: 634205.7673 | J9: 6733221371 | K9: 361006.9019 | L9: 49609510.07 | M9: 145204450.2 | N9: 45789901.29 | O9: -6941049293 | P9: 270199662.1 | Q9: 303336608.8
A10: 2006-09-01 | B10: 260653838.6 | C10: 98.5 | D10: 5 | E10: 30 | F10: 20 | G10: 2006 | H10: 634615.6779 | J10: 6733221371 | K10: 6709279.215 | L10: 3637060.855 | M10: 140520435.7 | N10: 41627182.99 | O10: -6941049293 | P10: 270374302.1 | Q10: 255040339.1
A11: 2006-10-01 | B11: 270564368.4 | C11: 307.9 | D11: 0.7 | E11: 31 | F11: 21 | G11: 2006 | H11: 635025.8534 | J11: 6733221371 | K11: 20972457.57 | L11: 509188.5198 | M11: 145204450.2 | N11: 43708542.14 | O11: -6941049293 | P11: 270549055 | Q11: 273115771.7
A12: 2006-11-01 | B12: 272439193.5 | C12: 383.4 | D12: 0 | E12: 30 | F12: 22 | G12: 2006 | H12: 635436.2941 | J12: 6733221371 | K12: 26115103.06 | L12: 0 | M12: 140520435.7 | N12: 45789901.29 | O12: -6941049293 | P12: 270723920.8 | Q12: 275321439.1
A13: 2006-12-01 | B13: 288148645.8 | C13: 511.9 | D13: 0 | E13: 31 | F13: 19 | G13: 2006 | H13: 635847 | J13: 6733221371 | K13: 34867817.57 | L13: 0 | M13: 145204450.2 | N13: 39545823.84 | O13: -6941049293 | P13: 270898899.7 | Q13: 282689069.5
A14: 2007-01-01 | B14: 300073560 | C14: 655.6 | D14: 0 | E14: 31 | F14: 22 | G14: 2007 | H14: 636023.3973 | J14: 6733221371 | K14: 44655872.62 | L14: 0 | M14: 145204450.2 | N14: 45789901.29 | O14: -6944509437 | P14: 270974052.7 | Q14: 295336210.9
A15: 2007-02-01 | B15: 289732838.4 | C15: 758.7 | D15: 0 | E15: 28 | F15: 20 | G15: 2007 | H15: 636199.8435 | J15: 6733221371 | K15: 51678478.58 | L15: 0 | M15: 131152406.6 | N15: 41627182.99 | O15: -6944509437 | P15: 271049226.6 | Q15: 284219228.8
A16: 2007-03-01 | B16: 288143354.6 | C16: 527 | D16: 0 | E16: 31 | F16: 22 | G16: 2007 | H16: 636376.3386 | J16: 6733221371 | K16: 35896346.66 | L16: 0 | M16: 145204450.2 | N16: 45789901.29 | O16: -6944509437 | P16: 271124421.3 | Q16: 286727053.5
A17: 2007-04-01 | B17: 260543396.5 | C17: 371.1 | D17: 0 | E17: 30 | F17: 19 | G17: 2007 | H17: 636552.8827 | J17: 6733221371 | K17: 25277294.59 | L17: 0 | M17: 140520435.7 | N17: 39545823.84 | O17: -6944509437 | P17: 271199636.9 | Q17: 265255125
A18: 2007-05-01 | B18: 268501831.2 | C18: 131.9 | D18: 22.7 | E18: 31 | F18: 22 | G18: 2007 | H18: 636729.4758 | J18: 6733221371 | K18: 8984303.842 | L18: 16512256.28 | M18: 145204450.2 | N18: 45789901.29 | O18: -6944509437 | P18: 271274873.4 | Q18: 276477719
A19: 2007-06-01 | B19: 304679127 | C19: 23.2 | D19: 70.2 | E19: 30 | F19: 21 | G19: 2007 | H19: 636906.1179 | J19: 6733221371 | K19: 1580256.627 | L19: 51064334.41 | M19: 140520435.7 | N19: 43708542.14 | O19: -6944509437 | P19: 271350130.7 | Q19: 296935633.6
A20: 2007-07-01 | B20: 302183688.8 | C20: 11.3 | D20: 71.6 | E20: 31 | F20: 21 | G20: 2007 | H20: 637082.809 | J20: 6733221371 | K20: 769693.9607 | L20: 52082711.45 | M20: 145204450.2 | N20: 43708542.14 | O20: -6944509437 | P20: 271425408.9 | Q20: 301902740.7
A21: 2007-08-01 | B21: 317756807 | C21: 11.5 | D21: 89.1 | E21: 31 | F21: 22 | G21: 2007 | H21: 637259.5491 | J21: 6733221371 | K21: 783316.8627 | L21: 64812424.44 | M21: 145204450.2 | N21: 45789901.29 | O21: -6944509437 | P21: 271500708 | Q21: 316802734.8
A22: 2007-09-01 | B22: 280873709.7 | C22: 61 | D22: 35 | E22: 30 | F22: 19 | G22: 2007 | H22: 637436.3383 | J22: 6733221371 | K22: 4154985.098 | L22: 25459425.99 | M22: 140520435.7 | N22: 39545823.84 | O22: -6944509437 | P22: 271576028 | Q22: 269968632.6
A23: 2007-10-01 | B23: 275821162.1 | C23: 149.9 | D23: 21.5 | E23: 31 | F23: 22 | G23: 2007 | H23: 637613.1764 | J23: 6733221371 | K23: 10210365.02 | L23: 15639361.68 | M23: 145204450.2 | N23: 45789901.29 | O23: -6944509437 | P23: 271651368.9 | Q23: 277207381.1
A24: 2007-11-01 | B24: 274311353.6 | C24: 468.7 | D24: 0 | E24: 30 | F24: 22 | G24: 2007 | H24: 637790.0637 | J24: 6733221371 | K24: 31925270.74 | L24: 0 | M24: 140520435.7 | N24: 45789901.29 | O24: -6944509437 | P24: 271726730.6 | Q24: 278674272.4
A25: 2007-12-01 | B25: 294695847.8 | C25: 657 | D25: 0 | E25: 31 | F25: 19 | G25: 2007 | H25: 637967 | J25: 6733221371 | K25: 44751232.94 | L25: 0 | M25: 145204450.2 | N25: 39545823.84 | O25: -6944509437 | P25: 271802113.3 | Q25: 290015554.3
A26: 2008-01-01 | B26: 301541879.9 | C26: 639 | D26: 0 | E26: 31 | F26: 22 | G26: 2008 | H26: 638231.8942 | J26: 6733221371 | K26: 43525171.76 | L26: 0 | M26: 145204450.2 | N26: 45789901.29 | O26: -6947969582 | P26: 271914969.9 | Q26: 291686283
A27: 2008-02-01 | B27: 286013196.4 | C27: 692.5 | D27: 0 | E27: 29 | F27: 20 | G27: 2008 | H27: 638496.8984 | J27: 6733221371 | K27: 47169298.04 | L27: 0 | M27: 135836421.2 | N27: 41627182.99 | O27: -6947969582 | P27: 272027873.4 | Q27: 281912565.4
A28: 2008-03-01 | B28: 285378792.3 | C28: 627.3 | D28: 0 | E28: 31 | F28: 19 | G28: 2008 | H28: 638762.0127 | J28: 6733221371 | K28: 42728232 | L28: 0 | M28: 145204450.2 | N28: 39545823.84 | O28: -6947969582 | P28: 272140823.8 | Q28: 284871119.7
A29: 2008-04-01 | B29: 255049710.7 | C29: 265 | D29: 0 | E29: 30 | F29: 22 | G29: 2008 | H29: 639027.237 | J29: 6733221371 | K29: 18050345.1 | L29: 0 | M29: 140520435.7 | N29: 45789901.29 | O29: -6947969582 | P29: 272253821.1 | Q29: 261866293
A30: 2008-05-01 | B30: 248546059.2 | C30: 208.8 | D30: 2.1 | E30: 31 | F30: 21 | G30: 2008 | H30: 639292.5715 | J30: 6733221371 | K30: 14222309.65 | L30: 1527565.559 | M30: 145204450.2 | N30: 43708542.14 | O30: -6947969582 | P30: 272366865.3 | Q30: 262281522.6
A31: 2008-06-01 | B31: 287944901.3 | C31: 24.1 | D31: 66.4 | E31: 30 | F31: 21 | G31: 2008 | H31: 639558.0161 | J31: 6733221371 | K31: 1641559.686 | L31: 48300168.16 | M31: 140520435.7 | N31: 43708542.14 | O31: -6947969582 | P31: 272479956.4 | Q31: 291902451.9
A32: 2008-07-01 | B32: 319461681.3 | C32: 4 | D32: 97 | E32: 31 | F32: 22 | G32: 2008 | H32: 639823.5709 | J32: 6733221371 | K32: 272458.0392 | L32: 70558980.6 | M32: 145204450.2 | N32: 45789901.29 | O32: -6947969582 | P32: 272593094.5 | Q32: 319670674.4
A33: 2008-08-01 | B33: 293716156.3 | C33: 12.4 | D33: 53.2 | E33: 31 | F33: 20 | G33: 2008 | H33: 640089.236 | J33: 6733221371 | K33: 844619.9215 | L33: 38698327.5 | M33: 145204450.2 | N33: 41627182.99 | O33: -6947969582 | P33: 272706279.6 | Q33: 284332650
A34: 2008-09-01 | B34: 283916906.4 | C34: 56.7 | D34: 21.4 | E34: 30 | F34: 21 | G34: 2008 | H34: 640355.0115 | J34: =WSkWh -> 6733221371 | K34: =LonHDD*C34 -> 3862092.706 | L34: =LonCDD*D34 -> 15566620.46 | M34: =MonthDays*E34 -> 140520435.7 | N34: =PeakDays*F34 -> 43708542.14 | O34: =Year*G34 -> -6947969582 | P34: =Population*H34 -> 272819511.6 | Q34: =SUM(J34:P34) -> 261728992.4
A35: 2008-10-01 | B35: 262065574 | C35: 286.8 | D35: 0 | E35: 31 | F35: 22 | G35: 2008 | H35: 640620.8972 | J35: 6733221371 | K35: 19535241.41 | L35: 0 | M35: 145204450.2 | N35: 45789901.29 | O35: -6947969582 | P35: 272932790.7 | Q35: 268714173.4
A36: 2008-11-01 | B36: 268677317.4 | C36: 468.3 | D36: 0 | E36: 30 | F36: 20 | G36: 2008 | H36: 640886.8934 | J36: 6733221371 | K36: 31898024.94 | L36: 0 | M36: 140520435.7 | N36: 41627182.99 | O36: -6947969582 | P36: 273046116.8 | Q36: 272343550.2
A37: 2008-12-01 | B37: 298039893.5 | C37: 671 | D37: 0 | E37: 31 | F37: 21 | G37: 2008 | H37: 641153 | J37: 6733221371 | K37: 45704836.07 | L37: 0 | M37: 145204450.2 | N37: 43708542.14 | O37: -6947969582 | P37: 273159490 | Q37: 293029108.2
A38: 2009-01-01 | B38: 307276829.9 | C38: 849.6 | D38: 0 | E38: 31 | F38: 21 | G38: 2009 | H38: 641315.6063 | J38: 6733221371 | K38: 57870087.52 | L38: 0 | M38: 145204450.2 | N38: 43708542.14 | O38: -6951429726 | P38: 273228767.5 | Q38: 301803492.9
A39: 2009-02-01 | B39: 264065998.4 | C39: 612.7 | D39: 0 | E39: 28 | F39: 19 | G39: 2009 | H39: 641478.2539 | J39: 6733221371 | K39: 41733760.15 | L39: 0 | M39: 131152406.6 | N39: 39545823.84 | O39: -6951429726 | P39: 273298062.5 | Q39: 267521698.7
A40: 2009-03-01 | B40: 278082458 | C40: 533.3 | D40: 0 | E40: 31 | F40: 22 | G40: 2009 | H40: 641640.9427 | J40: 6733221371 | K40: 36325468.08 | L40: 0 | M40: 145204450.2 | N40: 45789901.29 | O40: -6951429726 | P40: 273367375.1 | Q40: 282478840.3
A41: 2009-04-01 | B41: 250781054.8 | C41: 307 | D41: 3.2 | E41: 30 | F41: 20 | G41: 2009 | H41: 641803.6728 | J41: 6733221371 | K41: 20911154.51 | L41: 2327718.947 | M41: 140520435.7 | N41: 41627182.99 | O41: -6951429726 | P41: 273436705.3 | Q41: 260614843.1
A42: 2009-05-01 | B42: 250742745.1 | C42: 156.9 | D42: 3.1 | E42: 31 | F42: 20 | G42: 2009 | H42: 641966.4441 | J42: 6733221371 | K42: 10687166.59 | L42: 2254977.73 | M42: 145204450.2 | N42: 41627182.99 | O42: -6951429726 | P42: 273506053.1 | Q42: 255071476.2
A43: 2009-06-01 | B43: 265479494.8 | C43: 49.7 | D43: 35.5 | E43: 30 | F43: 22 | G43: 2009 | H43: 642129.2567 | J43: 6733221371 | K43: 3385291.137 | L43: 25823132.07 | M43: 140520435.7 | N43: 45789901.29 | O43: -6951429726 | P43: 273575418.5 | Q43: 270885824.3
A44: 2009-07-01 | B44: 274906308.3 | C44: 20.2 | D44: 29.4 | E44: 31 | F44: 22 | G44: 2009 | H44: 642292.1107 | J44: 6733221371 | K44: 1375913.098 | L44: 21385917.83 | M44: 145204450.2 | N44: 45789901.29 | O44: -6951429726 | P44: 273644801.4 | Q44: 269192629.5
A45: 2009-08-01 | B45: 300712862.7 | C45: 17.9 | D45: 71.9 | E45: 31 | F45: 20 | G45: 2009 | H45: 642455.0059 | J45: 6733221371 | K45: 1219249.725 | L45: 52300935.1 | M45: 145204450.2 | N45: 41627182.99 | O45: -6951429726 | P45: 273714202 | Q45: 295857665.6
A46: 2009-09-01 | B46: 263969677.2 | C46: 71.2 | D46: 15.9 | E46: 30 | F46: 21 | G46: 2009 | H46: 642617.9424 | J46: 6733221371 | K46: 4849753.098 | L46: 11565853.52 | M46: 140520435.7 | N46: 43708542.14 | O46: -6951429726 | P46: 273783620.2 | Q46: 256219850.2
A47: 2009-10-01 | B47: 258962858.8 | C47: 301.2 | D47: 0 | E47: 31 | F47: 21 | G47: 2009 | H47: 642780.9203 | J47: 6733221371 | K47: 20516090.35 | L47: 0 | M47: 145204450.2 | N47: 43708542.14 | O47: -6951429726 | P47: 273853055.9 | Q47: 265073784.2
A48: 2009-11-01 | B48: 258162607.6 | C48: 356.7 | D48: 0 | E48: 30 | F48: 21 | G48: 2009 | H48: 642943.9395 | J48: 6733221371 | K48: 24296445.64 | L48: 0 | M48: 140520435.7 | N48: 43708542.14 | O48: -6951429726 | P48: 273922509.3 | Q48: 264239578.4
A49: 2009-12-01 | B49: 292766418 | C49: 637.3 | D49: 0 | E49: 31 | F49: 21 | G49: 2009 | H49: 643107 | J49: 6733221371 | K49: 43409377.09 | L49: 0 | M49: 145204450.2 | N49: 43708542.14 | O49: -6951429726 | P49: 273991980.3 | Q49: 288105995.3
A50: 2010-01-01 | B50: 301373371.7 | C50: 733.1 | D50: 0 | E50: 31 | F50: 20 | G50: 2010 | H50: 643459.1873 | J50: 6733221371 | K50: 49934747.13 | L50: 0 | M50: 145204450.2 | N50: 41627182.99 | O50: -6954889870 | P50: 274142027.6 | Q50: 289239909.3
A51: 2010-02-01 | B51: 268164437.3 | C51: 633.4 | D51: 0 | E51: 28 | F51: 19 | G51: 2010 | H51: 643811.5674 | J51: 6733221371 | K51: 43143730.51 | L51: 0 | M51: 131152406.6 | N51: 39545823.84 | O51: -6954889870 | P51: 274292157.1 | Q51: 266465619.5
A52: 2010-03-01 | B52: 269584961.7 | C52: 450.2 | D52: 0 | E52: 31 | F52: 23 | G52: 2010 | H52: 644164.1405 | J52: 6733221371 | K52: 30665152.31 | L52: 0 | M52: 145204450.2 | N52: 47871260.44 | O52: -6954889870 | P52: 274442368.8 | Q52: 276514733.2
A53: 2010-04-01 | B53: 242909549.6 | C53: 236.4 | D53: 0 | E53: 30 | F53: 20 | G53: 2010 | H53: 644516.9068 | J53: 6733221371 | K53: 16102270.12 | L53: 0 | M53: 140520435.7 | N53: 41627182.99 | O53: -6954889870 | P53: 274592662.8 | Q53: 251174053
A54: 2010-05-01 | B54: 269054896.2 | C54: 121.1 | D54: 34.9 | E54: 31 | F54: 20 | G54: 2010 | H54: 644869.8661 | J54: 6733221371 | K54: 8248667.137 | L54: 25386684.77 | M54: 145204450.2 | N54: 41627182.99 | O54: -6954889870 | P54: 274743039.1 | Q54: 273541525.6
A55: 2010-06-01 | B55: 288397187.6 | C55: 23.6 | D55: 57.5 | E55: 30 | F55: 22 | G55: 2010 | H55: 645223.0188 | J55: 6733221371 | K55: 1607502.431 | L55: 41826199.84 | M55: 140520435.7 | N55: 45789901.29 | O55: -6954889870 | P55: 274893497.7 | Q55: 282969038.4
A56: 2010-07-01 | B56: 334725938.1 | C56: 5.6 | D56: 129.7 | E56: 31 | F56: 21 | G56: 2010 | H56: 645576.3649 | J56: 6733221371 | K56: 381441.2549 | L56: 94345358.59 | M56: 145204450.2 | N56: 43708542.14 | O56: -6954889870 | P56: 275044038.8 | Q56: 337015332.3
A57: 2010-08-01 | B57: 325611196.9 | C57: 6 | D57: 121.7 | E57: 31 | F57: 21 | G57: 2010 | H57: 645929.9045 | J57: 6733221371 | K57: 408687.0588 | L57: 88526061.22 | M57: 145204450.2 | N57: 43708542.14 | O57: -6954889870 | P57: 275194662.2 | Q57: 331373904.3
A58: 2010-09-01 | B58: 264224372 | C58: 87.9 | D58: 24.1 | E58: 30 | F58: 21 | G58: 2010 | H58: 646283.6377 | J58: 6733221371 | K58: 5987265.411 | L58: 17530633.32 | M58: 140520435.7 | N58: 43708542.14 | O58: -6954889870 | P58: 275345368.2 | Q58: 261423746.1
A59: 2010-10-01 | B59: 254480106.5 | C59: 239.5 | D59: 0 | E59: 31 | F59: 20 | G59: 2010 | H59: 646637.5646 | J59: 6733221371 | K59: 16313425.1 | L59: 0 | M59: 145204450.2 | N59: 41627182.99 | O59: -6954889870 | P59: 275496156.7 | Q59: 256972716.4
A60: 2010-11-01 | B60: 262982872.6 | C60: 413.6 | D60: 0 | E60: 30 | F60: 22 | G60: 2010 | H60: 646991.6853 | J60: 6733221371 | K60: 28172161.25 | L60: 0 | M60: 140520435.7 | N60: 45789901.29 | O60: -6954889870 | P60: 275647027.8 | Q60: 268461027.4
A61: 2010-12-01 | B61: 293281443.4 | C61: 713.5 | D61: 0 | E61: 31 | F61: 21 | G61: 2010 | H61: 647346 | J61: 6733221371 | K61: 48599702.74 | L61: 0 | M61: 145204450.2 | N61: 43708542.14 | O61: -6954889870 | P61: 275797981.5 | Q61: 291642177.9
A62: 2011-01-01 | B62: 300666159.3 | C62: 798.8 | D62: 0 | E62: 31 | F62: 20 | G62: 2011 | H62: 647679.7188 | J62: 6733221371 | K62: 54409870.43 | L62: 0 | M62: 145204450.2 | N62: 41627182.99 | O62: -6958350014 | P62: 275940160.4 | Q62: 292053021.2
A63: 2011-02-01 | B63: 269236699.8 | C63: 677.8 | D63: 0 | E63: 28 | F63: 19 | G63: 2011 | H63: 648013.6097 | J63: 6733221371 | K63: 46168014.74 | L63: 0 | M63: 131152406.6 | N63: 39545823.84 | O63: -6958350014 | P63: 276082412.7 | Q63: 267820015.1
A64: 2011-03-01 | B64: 282763557.6 | C64: 599.6 | D64: 0 | E64: 31 | F64: 23 | G64: 2011 | H64: 648347.6727 | J64: 6733221371 | K64: 40841460.07 | L64: 0 | M64: 145204450.2 | N64: 47871260.44 | O64: -6958350014 | P64: 276224738.3 | Q64: 285013266.1
A65: 2011-04-01 | B65: 251072267.6 | C65: 330.4 | D65: 0 | E65: 30 | F65: 19 | G65: 2011 | H65: 648681.9079 | J65: 6733221371 | K65: 22505034.04 | L65: 0 | M65: 140520435.7 | N65: 39545823.84 | O65: -6958350014 | P65: 276367137.2 | Q65: 253809787.9
A66: 2011-05-01 | B66: 259668932.4 | C66: 126.4 | D66: 17.4 | E66: 31 | F66: 21 | G66: 2011 | H66: 649016.3154 | J66: =WSkWh -> 6733221371 | K66: =LonHDD*C66 -> 8609674.038 | L66: =LonCDD*D66 -> 12656971.78 | M66: =MonthDays*E66 -> 145204450.2 | N66: =PeakDays*F66 -> 43708542.14 | O66: =Year*G66 -> -6958350014 | P66: =Population*H66 -> 276509609.6 | Q66: =SUM(J66:P66) -> 261560604.9
A67: 2011-06-01 | B67: 278903469.9 | C67: 27 | D67: 39.6 | E67: 30 | F67: 22 | G67: =YEAR(A67) -> 2011 | H67: 649350.8953 | J67: 6733221371 | K67: 1839091.765 | L67: 28805521.98 | M67: 140520435.7 | N67: 45789901.29 | O67: -6958350014 | P67: 276652155.4 | Q67: 268478463.3
A68: 2011-07-01 | B68: 342682880.6 | C68: 0 | D68: 160.9 | E68: 31 | F68: 20 | G68: 2011 | H68: 649685.6477 | J68: 6733221371 | K68: 0 | L68: 117040618.3 | M68: 145204450.2 | N68: 41627182.99 | O68: -6958350014 | P68: 276794774.7 | Q68: 355538383.4
A69: 2011-08-01 | B69: 311408950 | C69: 1.5 | D69: 82.9 | E69: 31 | F69: 22 | G69: 2011 | H69: 650020.5727 | J69: 6733221371 | K69: 102171.7647 | L69: 60302468.98 | M69: 145204450.2 | N69: 45789901.29 | O69: -6958350014 | P69: 276937467.5 | Q69: 303207816.9
A70: 2011-09-01 | B70: 270531205.4 | C70: 71.9 | D70: 29 | E70: 30 | F70: 21 | G70: 2011 | H70: 650355.6703 | J70: 6733221371 | K70: 4897433.254 | L70: 21094952.96 | M70: 140520435.7 | N70: 43708542.14 | O70: -6958350014 | P70: 277080233.9 | Q70: 262172955.1
A71: 2011-10-01 | B71: 257212837.9 | C71: 234.6 | D71: 0 | E71: 31 | F71: 20 | G71: 2011 | H71: 650690.9407 | J71: 6733221371 | K71: 15979664 | L71: 0 | M71: 145204450.2 | N71: 41627182.99 | O71: -6958350014 | P71: 277223073.9 | Q71: 254905728.3
A72: 2011-11-01 | B72: 256512690.7 | C72: 347.9 | D72: 0 | E72: 30 | F72: 22 | G72: 2011 | H72: 651026.3839 | J72: 6733221371 | K72: 23697037.96 | L72: 0 | M72: 140520435.7 | N72: 45789901.29 | O72: -6958350014 | P72: 277365987.5 | Q72: 262244719.6
A73: 2011-12-01 | B73: 277881320.2 | C73: 548.4 | D73: 0 | E73: 31 | F73: 20 | G73: 2011 | H73: 651362 | J73: 6733221371 | K73: 37353997.17 | L73: 0 | M73: 145204450.2 | N73: 41627182.99 | O73: -6958350014 | P73: 277508974.8 | Q73: 276565962.3
A74: 2012-01-01 | B74: 290374956 | C74: 644.8 | D74: 0 | E74: 31 | F74: 21 | G74: 2012 | H74: 651876.261 | J74: 6733221371 | K74: 43920235.92 | L74: 0 | M74: 145204450.2 | N74: 43708542.14 | O74: -6961810159 | P74: 277728072.7 | Q74: 281972513.9
A75: 2012-02-01 | B75: 265047531.9 | C75: 553 | D75: 0 | E75: 29 | F75: 20 | G75: 2012 | H75: 652390.928 | J75: 6733221371 | K75: 37667323.92 | L75: 0 | M75: 135836421.2 | N75: 41627182.99 | O75: -6961810159 | P75: 277947343.6 | Q75: 264489484.6
A76: 2012-03-01 | B76: 264589708.5 | C76: 331.1 | D76: 2.2 | E76: 31 | F76: 22 | G76: 2012 | H76: 652906.0014 | J76: 6733221371 | K76: 22552714.19 | L76: 1600306.776 | M76: 145204450.2 | N76: 45789901.29 | O76: -6961810159 | P76: 278166787.6 | Q76: 264725373
A77: 2012-04-01 | B77: 241856924.9 | C77: 334.6 | D77: 0 | E77: 30 | F77: 19 | G77: 2012 | H77: 653421.4815 | J77: 6733221371 | K77: 22791114.98 | L77: 0 | M77: 140520435.7 | N77: 39545823.84 | O77: -6961810159 | P77: 278386404.8 | Q77: 252654992.3
A78: 2012-05-01 | B78: 264293073.5 | C78: 87.2 | D78: 28.5 | E78: 31 | F78: 22 | G78: 2012 | H78: 653937.3685 | J78: 6733221371 | K78: 5939585.254 | L78: 20731246.88 | M78: 145204450.2 | N78: 45789901.29 | O78: -6961810159 | P78: 278606195.5 | Q78: 267682592.1
A79: 2012-06-01 | B79: 290940514.1 | C79: 28.2 | D79: 81.7 | E79: 30 | F79: 21 | G79: 2012 | H79: 654453.6628 | J79: 6733221371 | K79: 1920829.176 | L79: 59429574.38 | M79: 140520435.7 | N79: 43708542.14 | O79: -6961810159 | P79: 278826159.7 | Q79: 295816754
A80: 2012-07-01 | B80: 340196199.4 | C80: 0 | D80: 161 | E80: 31 | F80: 21 | G80: 2012 | H80: 654970.3647 | J80: 6733221371 | K80: 0 | L80: 117113359.5 | M80: 145204450.2 | N80: 43708542.14 | O80: -6961810159 | P80: 279046297.5 | Q80: 356483862.4
A81: 2012-08-01 | B81: 304061556.8 | C81: 7.8 | D81: 79.6 | E81: 31 | F81: 22 | G81: 2012 | H81: 655487.4746 | J81: 6733221371 | K81: 531293.1764 | L81: 57902008.82 | M81: 145204450.2 | N81: 45789901.29 | O81: -6961810159 | P81: 279266609.2 | Q81: 300105475.6
A82: 2012-09-01 | B82: 261393756 | C82: 103.4 | D82: 27.7 | E82: 30 | F82: 19 | G82: 2012 | H82: 656004.9927 | J82: 6733221371 | K82: 7043040.313 | L82: 20149317.14 | M82: 140520435.7 | N82: 39545823.84 | O82: -6961810159 | P82: 279487094.7 | Q82: 258156924.7
A83: 2012-10-01 | B83: 253052401.8 | C83: 250.5 | D83: 0.7 | E83: 31 | F83: 22 | G83: 2012 | H83: 656522.9195 | J83: 6733221371 | K83: 17062684.7 | L83: 509188.5198 | M83: 145204450.2 | N83: 45789901.29 | O83: -6961810159 | P83: 279707754.4 | Q83: 259685192.1
A84: 2012-11-01 | B84: 260224800 | C84: 420.4 | D84: 0 | E84: 30 | F84: 22 | G84: 2012 | H84: 657041.2551 | J84: 6733221371 | K84: 28635339.92 | L84: 0 | M84: 140520435.7 | N84: 45789901.29 | O84: -6961810159 | P84: 279928588.3 | Q84: 266285478.1
A85: 2012-12-01 | B85: 271295249.8 | C85: 535.9 | D85: 0 | E85: 31 | F85: 19 | G85: 2012 | H85: 657560 | J85: 6733221371 | K85: 36502565.8 | L85: 0 | M85: 145204450.2 | N85: 39545823.84 | O85: -6961810159 | P85: 280149596.5 | Q85: 272813649.3
A86: 2013-01-01 | B86: 288991701.3 | C86: 657.4 | D86: 0 | E86: 31 | F86: 22 | G86: 2013 | H86: 657954.1149 | J86: 6733221371 | K86: 44778478.74 | L86: 0 | M86: 145204450.2 | N86: 45789901.29 | O86: -6965270303 | P86: 280317506.8 | Q86: 284041405.8
A87: 2013-02-01 | B87: 262888751 | C87: 657 | D87: 0 | E87: 28 | F87: 19 | G87: 2013 | H87: 658348.466 | J87: 6733221371 | K87: 44751232.94 | L87: 0 | M87: 131152406.6 | N87: 39545823.84 | O87: -6965270303 | P87: 280485517.8 | Q87: 263886050
A88: 2013-03-01 | B88: 276366259.2 | C88: 581.9 | D88: 0 | E88: 31 | F88: 20 | G88: 2013 | H88: 658743.0534 | J88: 6733221371 | K88: 39635833.25 | L88: 0 | M88: 145204450.2 | N88: 41627182.99 | O88: -6965270303 | P88: 280653629.5 | Q88: 275072164.7
A89: 2013-04-01 | B89: 251523569.8 | C89: 362.2 | D89: 0 | E89: 30 | F89: 21 | G89: 2013 | H89: 659137.8774 | J89: 6733221371 | K89: 24671075.45 | L89: 0 | M89: 140520435.7 | N89: 43708542.14 | O89: -6965270303 | P89: 280821841.9 | Q89: 257672963.9
A90: 2013-05-01 | B90: 259256155.3 | C90: 122.2 | D90: 27 | E90: 31 | F90: 22 | G90: 2013 | H90: 659532.938 | J90: 6733221371 | K90: 8323593.097 | L90: 19640128.62 | M90: 145204450.2 | N90: 45789901.29 | O90: -6965270303 | P90: 280990155.2 | Q90: 267899297.1
A91: 2013-06-01 | B91: 276460042.3 | C91: 41.1 | D91: 52.7 | E91: 30 | F91: 20 | G91: 2013 | H91: 659928.2353 | J91: 6733221371 | K91: 2799506.353 | L91: 38334621.42 | M91: 140520435.7 | N91: 41627182.99 | O91: -6965270303 | P91: 281158569.3 | Q91: 272391384.5
A92: 2013-07-01 | B92: 321327185.6 | C92: 7.1 | D92: 112.9 | E92: 31 | F92: 22 | G92: 2013 | H92: 660323.7696 | J92: 6733221371 | K92: 483613.0196 | L92: 82124834.12 | M92: 145204450.2 | N92: 45789901.29 | O92: -6965270303 | P92: 281327084.4 | Q92: 322880951.8
A93: 2013-08-01 | B93: 294037259.6 | C93: 18.4 | D93: 63.4 | E93: 31 | F93: 21 | G93: 2013 | H93: 660719.541 | J93: 6733221371 | K93: 1253306.98 | L93: 46117931.65 | M93: 145204450.2 | N93: 43708542.14 | O93: -6965270303 | P93: 281495700.5 | Q93: 285731000.2
A94: 2013-09-01 | B94: 263616852.7 | C94: 94.9 | D94: 26 | E94: 30 | F94: 20 | G94: 2013 | H94: 661115.5496 | J94: 6733221371 | K94: 6464066.98 | L94: 18912716.45 | M94: 140520435.7 | N94: 41627182.99 | O94: -6965270303 | P94: 281664417.6 | Q94: 257139888.5
A95: 2013-10-01 | B95: 260620451.1 | C95: 226.6 | D95: 2.6 | E95: 31 | F95: 22 | G95: 2013 | H95: 661511.7955 | J95: 6733221371 | K95: 15434747.92 | L95: 1891271.645 | M95: 145204450.2 | N95: 45789901.29 | O95: -6965270303 | P95: 281833235.9 | Q95: 258104675.7
A96: 2013-11-01 | B96: 264051626 | C96: 492.1 | D96: 0 | E96: 30 | F96: 21 | G96: 2013 | H96: 661908.2789 | J96: 6733221371 | K96: 33519150.27 | L96: 0 | M96: 140520435.7 | N96: 43708542.14 | O96: -6965270303 | P96: 282002155.3 | Q96: 267701352.2
A97: 2013-12-01 | B97: 286523069.5 | C97: 687.7 | D97: 0 | E97: 31 | F97: 20 | G97: 2013 | H97: 662305 | J97: 6733221371 | K97: 46842348.39 | L97: 0 | M97: 145204450.2 | N97: 41627182.99 | O97: -6965270303 | P97: 282171176 | Q97: 283796226.3
A98: 2014-01-01 | B98: 305527740.5 | C98: 843.9 | D98: 0 | E98: 31 | F98: 22 | G98: 2014 | H98: 662715.6798 | J98: =WSkWh -> 6733221371 | K98: =LonHDD*C98 -> 57481834.82 | L98: =LonCDD*D98 -> 0 | M98: =MonthDays*E98 -> 145204450.2 | N98: =PeakDays*F98 -> 45789901.29 | O98: =Year*G98 -> -6968730447 | P98: =Population*H98 -> 282346143.8 | Q98: =SUM(J98:P98) -> 295313254.6
A99: 2014-02-01 | B99: 270783682.4 | C99: 790 | D99: 0 | E99: 28 | F99: 19 | G99: 2014 | H99: 663126.6143 | J99: 6733221371 | K99: 53810462.74 | L99: 0 | M99: 131152406.6 | N99: 39545823.84 | O99: -6968730447 | P99: 282521220 | Q99: 271520837.8
A100: 2014-03-01 | B100: 288299673 | C100: 716.8 | D100: 0 | E100: 31 | F100: 21 | G100: 2014 | H100: 663537.8036 | J100: 6733221371 | K100: 48824480.62 | L100: 0 | M100: 145204450.2 | N100: 43708542.14 | O100: -6968730447 | P100: 282696404.8 | Q100: 284924802.3
A101: 2014-04-01 | B101: 244855513 | C101: 353.8 | D101: 0 | E101: 30 | F101: 20 | G101: 2014 | H101: 663949.2479 | J101: 6733221371 | K101: 24098913.57 | L101: 0 | M101: 140520435.7 | N101: 41627182.99 | O101: -6968730447 | P101: 282871698.2 | Q101: 253609155
A102: 2014-05-01 | B102: 251891961.5 | C102: 142.5 | D102: 12.2 | E102: 31 | F102: 21 | G102: 2014 | H102: 664360.9473 | J102: 6733221371 | K102: 9706317.646 | L102: 8874428.487 | M102: 145204450.2 | N102: 43708542.14 | O102: -6968730447 | P102: 283047100.4 | Q102: 255031763.4
A103: 2014-06-01 | B103: 283978631.8 | C103: 19.7 | D103: 71.9 | E103: 30 | F103: 21 | G103: 2014 | H103: 664772.902 | J103: 6733221371 | K103: 1341855.843 | L103: 52300935.1 | M103: 140520435.7 | N103: 43708542.14 | O103: -6968730447 | P103: 283222611.3 | Q103: 285585304.5
A104: 2014-07-01 | B104: 286546351.3 | C104: 21.5 | D104: 47.6 | E104: 31 | F104: 22 | G104: 2014 | H104: 665185.1121 | J104: 6733221371 | K104: 1464461.961 | L104: 34624819.34 | M104: 145204450.2 | N104: 45789901.29 | O104: -6968730447 | P104: 283398231 | Q104: 274972788.3
A105: 2014-08-01 | B105: 283846898.6 | C105: 14.5 | D105: 53.4 | E105: 31 | F105: 20 | G105: 2014 | H105: 665597.5779 | J105: 6733221371 | K105: 987660.3921 | L105: 38843809.94 | M105: 145204450.2 | N105: 41627182.99 | O105: -6968730447 | P105: 283573959.6 | Q105: 274727987.6
A106: 2014-09-01 | B106: 261882965.5 | C106: 86.2 | D106: 17.6 | E106: 30 | F106: 21 | G106: 2014 | H106: 666010.2994 | J106: 6733221371 | K106: 5871470.745 | L106: 12802454.21 | M106: 140520435.7 | N106: 43708542.14 | O106: -6968730447 | P106: 283749797.2 | Q106: 251143624.5
A107: 2014-10-01 | B107: 246291396.5 | C107: 247.1 | D107: 0 | E107: 31 | F107: 22 | G107: 2014 | H107: 666423.2768 | J107: 6733221371 | K107: 16831095.37 | L107: 0 | M107: 145204450.2 | N107: 45789901.29 | O107: -6968730447 | P107: 283925743.8 | Q107: 256242115.2
A108: 2014-11-01 | B108: 259203542.6 | C108: 503.7 | D108: 0 | E108: 30 | F108: 20 | G108: 2014 | H108: 666836.5103 | J108: 6733221371 | K108: 34309278.59 | L108: 0 | M108: 140520435.7 | N108: 41627182.99 | O108: -6968730447 | P108: 284101799.5 | Q108: 265049621.3
A109: 2014-12-01 | B109: 264968874.8 | C109: 567.5 | D109: 0 | E109: 31 | F109: 21 | G109: 2014 | H109: 667250 | J109: 6733221371 | K109: 38654984.31 | L109: 0 | M109: 145204450.2 | N109: 43708542.14 | O109: -6968730447 | P109: 284277964.4 | Q109: 276336865.6
A110: 2015-01-01 | B110: 295598619 | C110: 812.9 | D110: 0 | E110: 31 | F110: 21 | G110: 2015 | H110: 667637.0958 | J110: 6733221371 | K110: 55370285.01 | L110: 0 | M110: 145204450.2 | N110: 43708542.14 | O110: -6972190591 | P110: 284442884.3 | Q110: 289756942
A111: 2015-02-01 | B111: 273784130.8 | C111: 872.9 | D111: 0 | E111: 28 | F111: 19 | G111: 2015 | H111: 668024.4162 | J111: 6733221371 | K111: 59457155.6 | L111: 0 | M111: 131152406.6 | N111: 39545823.84 | O111: -6972190591 | P111: 284607899.9 | Q111: 275794066.3
A112: 2015-03-01 | B112: 274934256.1 | C112: 640.1 | D112: 0 | E112: 31 | F112: 22 | G112: 2015 | H112: 668411.9613 | J112: 6733221371 | K112: 43600097.72 | L112: 0 | M112: 145204450.2 | N112: 45789901.29 | O112: -6972190591 | P112: 284773011.2 | Q112: 280398240.7
A113: 2015-04-01 | B113: 243458062.7 | C113: 336.6 | D113: 0 | E113: 30 | F113: 20 | G113: 2015 | H113: 668799.7312 | J113: 6733221371 | K113: 22927344 | L113: 0 | M113: 140520435.7 | N113: 41627182.99 | O113: -6972190591 | P113: 284938218.3 | Q113: 251043961.3
A114: 2015-05-01 | B114: 259161560.2 | C114: 104.7 | D114: 34.9 | E114: 31 | F114: 20 | G114: 2015 | H114: 669187.7261 | J114: 6733221371 | K114: 7131589.176 | L114: 25386684.77 | M114: 145204450.2 | N114: 41627182.99 | O114: -6972190591 | P114: 285103521.3 | Q114: 265484208.7
A115: 2015-06-01 | B115: 267546627.5 | C115: 29.7 | D115: 30.4 | E115: 30 | F115: 22 | G115: 2015 | H115: 669575.946 | J115: 6733221371 | K115: 2023000.941 | L115: 22113330 | M115: 140520435.7 | N115: 45789901.29 | O115: -6972190591 | P115: 285268920.1 | Q115: 256746368.3
A116: 2015-07-01 | B116: 301589192.5 | C116: 7 | D116: 76.4 | E116: 31 | F116: 22 | G116: 2015 | H116: 669964.3912 | J116: 6733221371 | K116: 476801.5686 | L116: 55574289.87 | M116: 145204450.2 | N116: 45789901.29 | O116: -6972190591 | P116: 285434414.9 | Q116: 293510638.1
A117: 2015-08-01 | B117: 290629200.9 | C117: 14 | D117: 61.6 | E117: 31 | F117: 20 | G117: 2015 | H117: 670353.0617 | J117: 6733221371 | K117: 953603.1372 | L117: 44808589.74 | M117: 145204450.2 | N117: 41627182.99 | O117: -6972190591 | P117: 285600005.7 | Q117: 279224612.1
A118: 2015-09-01 | B118: 282605551.9 | C118: 34.6 | D118: 54.2 | E118: 30 | F118: 21 | G118: 2015 | H118: 670741.9578 | J118: 6733221371 | K118: 2356762.039 | L118: 39425739.67 | M118: 140520435.7 | N118: 43708542.14 | O118: -6972190591 | P118: 285765692.6 | Q118: 272807952.4
A119: 2015-10-01 | B119: 248709445 | C119: 254.9 | D119: 0 | E119: 31 | F119: 21 | G119: 2015 | H119: 671131.0794 | J119: 6733221371 | K119: 17362388.55 | L119: 0 | M119: 145204450.2 | N119: 43708542.14 | O119: -6972190591 | P119: 285931475.6 | Q119: 253237636.8
A120: 2015-11-01 | B120: 248717807.7 | C120: 353.2 | D120: 0 | E120: 30 | F120: 21 | G120: 2015 | H120: 671520.4268 | J120: 6733221371 | K120: 24058044.86 | L120: 0 | M120: 140520435.7 | N120: 43708542.14 | O120: -6972190591 | P120: 286097354.8 | Q120: 255415157.7
A121: 2015-12-01 | B121: 260362308.7 | C121: 447.8 | D121: 0 | E121: 31 | F121: 21 | G121: 2015 | H121: 671910 | J121: 6733221371 | K121: 30501677.49 | L121: 0 | M121: 145204450.2 | N121: 43708542.14 | O121: -6972190591 | P121: 286263330.2 | Q121: 266708780.3
A122: 2016-01-01 | C122: 718.98 | D122: 0 | E122: 31 | F122: 20 | G122: =YEAR(A122) -> 2016 | H122: 672300.6956 | J122: 6733221371 | K122: 48972970.25 | L122: 0 | M122: 145204450.2 | N122: 41627182.99 | O122: -6975650735 | P122: 286429783.7 | Q122: 279805023.3
A123: 2016-02-01 | C123: 685.73 | D123: 0 | E123: 29 | F123: 20 | G123: =YEAR(A123) -> 2016 | H123: 672691.6184 | J123: 6733221371 | K123: 46708162.8 | L123: 0 | M123: 135836421.2 | N123: 41627182.99 | O123: -6975650735 | P123: 286596334.1 | Q123: 268338737.2
A124: 2016-03-01 | C124: 555.3 | D124: 0.22 | E124: 31 | F124: 21 | G124: 2016 | H124: 673082.7685 | J124: 6733221371 | K124: 37823987.29 | L124: 160030.6776 | M124: 145204450.2 | N124: 43708542.14 | O124: -6975650735 | P124: 286762981.3 | Q124: 271230627.7
A125: 2016-04-01 | C125: 318.32 | D125: 0.32 | E125: 30 | F125: 21 | G125: 2016 | H125: 673474.146 | J125: 6733221371 | K125: 21682210.76 | L125: 232771.8947 | M125: 140520435.7 | N125: 43708542.14 | O125: -6975650735 | P125: 286929725.4 | Q125: 250644322
A126: 2016-05-01 | C126: 135.36 | D126: 20.57 | E126: 31 | F126: 21 | G126: 2016 | H126: 673865.7511 | J126: 6733221371 | K126: 9219980.046 | L126: 14962868.36 | M126: 145204450.2 | N126: 43708542.14 | O126: -6975650735 | P126: 287096566.5 | Q126: 257763043.3
A127: 2016-06-01 | C127: 29.3 | D127: 55.03 | E127: 30 | F127: 22 | G127: 2016 | H127: 674257.5839 | J127: 6733221371 | K127: 1995755.137 | L127: 40029491.78 | M127: 140520435.7 | N127: 45789901.29 | O127: -6975650735 | P127: 287263504.6 | Q127: 273169724.5
A128: 2016-07-01 | C128: 8 | D128: 102.02 | E128: 31 | F128: 20 | G128: 2016 | H128: 674649.6445 | J128: 6733221371 | K128: 544916.0784 | L128: 74210589.69 | M128: 145204450.2 | N128: 41627182.99 | O128: -6975650735 | P128: 287430539.7 | Q128: 306588314.8
A129: 2016-08-01 | C129: 10.93 | D129: 74.5 | E129: 31 | F129: 22 | G129: 2016 | H129: 675041.9332 | J129: 6733221371 | K129: 744491.5921 | L129: 54192206.75 | M129: 145204450.2 | N129: 45789901.29 | O129: -6975650735 | P129: 287597672 | Q129: 291099357.9
A130: 2016-09-01 | C130: 76.63 | D130: 25.59 | E130: 30 | F130: 21 | G130: 2016 | H130: 675434.4499 | J130: =WSkWh -> 6733221371 | K130: =LonHDD*C130 -> 5219614.886 | L130: =LonCDD*D130 -> 18614477.46 | M130: =MonthDays*E130 -> 140520435.7 | N130: =PeakDays*F130 -> 43708542.14 | O130: =Year*G130 -> -6975650735 | P130: =Population*H130 -> 287764901.4 | Q130: =SUM(J130:P130) -> 253398607.7
A131: 2016-10-01 | C131: 249.9 | D131: 2.55 | E131: 31 | F131: 20 | G131: 2016 | H131: 675827.1948 | J131: 6733221371 | K131: 17021816 | L131: 1854901.036 | M131: 145204450.2 | N131: 41627182.99 | O131: -6975650735 | P131: 287932228.1 | Q131: 251211214.5
A132: 2016-11-01 | C132: 420.8 | D132: 0 | E132: 30 | F132: 22 | G132: 2016 | H132: 676220.1682 | J132: 6733221371 | K132: 28662585.72 | L132: 0 | M132: 140520435.7 | N132: 45789901.29 | O132: -6975650735 | P132: 288099652.1 | Q132: 260643210.9
A133: 2016-12-01 | C133: 597.8 | D133: 0 | E133: 31 | F133: 20 | G133: 2016 | H133: 676613.37 | J133: 6733221371 | K133: 40718853.96 | L133: 0 | M133: 145204450.2 | N133: 41627182.99 | O133: -6975650735 | P133: 288267173.5 | Q133: 273388296.7
A134: 2017-01-01 | C134: 718.98 | D134: 0 | E134: 31 | F134: 21 | G134: 2017 | H134: 677062.8 | J134: 6733221371 | K134: 48972970.25 | L134: 0 | M134: 145204450.2 | N134: 43708542.14 | O134: -6979110880 | P134: 288458650.5 | Q134: 280455105
A135: 2017-02-01 | C135: 685.73 | D135: 0 | E135: 28 | F135: 19 | G135: 2017 | H135: 677512.5286 | J135: 6733221371 | K135: 46708162.8 | L135: 0 | M135: 131152406.6 | N135: 39545823.84 | O135: -6979110880 | P135: 288650254.7 | Q135: 260167139.9
A136: 2017-03-01 | C136: 555.3 | D136: 0.22 | E136: 31 | F136: 23 | G136: 2017 | H136: 677962.5559 | J136: 6733221371 | K136: 37823987.29 | L136: 160030.6776 | M136: 145204450.2 | N136: 47871260.44 | O136: -6979110880 | P136: 288841986.2 | Q136: 274012206.7
A137: 2017-04-01 | C137: 318.32 | D137: 0.32 | E137: 30 | F137: 18 | G137: 2017 | H137: 678412.8821 | J137: 6733221371 | K137: 21682210.76 | L137: 232771.8947 | M137: 140520435.7 | N137: 37464464.69 | O137: -6979110880 | P137: 289033845.1 | Q137: 243044220
A138: 2017-05-01 | C138: 135.36 | D138: 20.57 | E138: 31 | F138: 22 | G138: 2017 | H138: 678863.5075 | J138: 6733221371 | K138: 9219980.046 | L138: 14962868.36 | M138: 145204450.2 | N138: 45789901.29 | O138: -6979110880 | P138: 289225831.4 | Q138: 258513523.2
A139: 2017-06-01 | C139: 29.3 | D139: 55.03 | E139: 30 | F139: 22 | G139: 2017 | H139: 679314.4321 | J139: 6733221371 | K139: 1995755.137 | L139: 40029491.78 | M139: 140520435.7 | N139: 45789901.29 | O139: -6979110880 | P139: 289417945.2 | Q139: 271864021
A140: 2017-07-01 | C140: 8 | D140: 102.02 | E140: 31 | F140: 20 | G140: 2017 | H140: 679765.6563 | J140: 6733221371 | K140: 544916.0784 | L140: 74210589.69 | M140: 145204450.2 | N140: 41627182.99 | O140: -6979110880 | P140: 289610186.6 | Q140: 305307817.5
A141: 2017-08-01 | C141: 10.93 | D141: 74.5 | E141: 31 | F141: 22 | G141: 2017 | H141: 680217.1802 | J141: 6733221371 | K141: 744491.5921 | L141: 54192206.75 | M141: 145204450.2 | N141: 45789901.29 | O141: -6979110880 | P141: 289802555.8 | Q141: 289844097.5
A142: 2017-09-01 | C142: 76.63 | D142: 25.59 | E142: 30 | F142: 20 | G142: 2017 | H142: 680669.004 | J142: 6733221371 | K142: 5219614.886 | L142: 18614477.46 | M142: 140520435.7 | N142: 41627182.99 | O142: -6979110880 | P142: 289995052.7 | Q142: 250087255.5
A143: 2017-10-01 | C143: 249.9 | D143: 2.55 | E143: 31 | F143: 21 | G143: 2017 | H143: 681121.1279 | J143: 6733221371 | K143: 17021816 | L143: 1854901.036 | M143: 145204450.2 | N143: 43708542.14 | O143: -6979110880 | P143: 290187677.4 | Q143: 252087878.7
A144: 2017-11-01 | C144: 420.8 | D144: 0 | E144: 30 | F144: 22 | G144: 2017 | H144: 681573.5522 | J144: 6733221371 | K144: 28662585.72 | L144: 0 | M144: 140520435.7 | N144: 45789901.29 | O144: -6979110880 | P144: 290380430.1 | Q144: 259463844.7
A145: 2017-12-01 | C145: 597.8 | D145: 0 | E145: 31 | F145: 19 | G145: 2017 | H145: 682026.277 | J145: 6733221371 | K145: 40718853.96 | L145: 0 | M145: 145204450.2 | N145: 39545823.84 | O145: -6979110880 | P145: 290573310.9 | Q145: 270152930.7

Sheet Normalized Monthly Data Summ
A1: Date | B1: Year | C1: WSkWh | D1: Normalized Value
A2: 2006-01-01 | B2: =YEAR(A2) -> 2006 | C2: 293367364.2 | D2: 287848525.6
A3: 2006-02-01 | B3: 2006 | C3: 273298001.5 | D3: 275608027.1
A4: 2006-03-01 | B4: 2006 | C4: 286819878.5 | D4: 291746029.5
A5: 2006-04-01 | B5: 2006 | C5: 252565044.2 | D5: 259146769.2
A6: 2006-05-01 | B6: 2006 | C6: 269392545 | D6: 279847181.1
A7: 2006-06-01 | B7: 2006 | C7: 287975078.9 | D7: 282448893.4
A8: 2006-07-01 | B8: 2006 | C8: 333043063.7 | D8: 346508631.5
A9: 2006-08-01 | B9: 2006 | C9: 312185503.2 | D9: 303336608.8
A10: 2006-09-01 | B10: 2006 | C10: 260653838.6 | D10: 255040339.1
A11: 2006-10-01 | B11: 2006 | C11: 270564368.4 | D11: 273115771.7
A12: 2006-11-01 | B12: 2006 | C12: 272439193.5 | D12: 275321439.1
A13: 2006-12-01 | B13: 2006 | C13: 288148645.8 | D13: 282689069.5
A14: 2007-01-01 | B14: 2007 | C14: 300073560 | D14: 295336210.9
A15: 2007-02-01 | B15: 2007 | C15: 289732838.4 | D15: 284219228.8
A16: 2007-03-01 | B16: 2007 | C16: 288143354.6 | D16: 286727053.5
A17: 2007-04-01 | B17: 2007 | C17: 260543396.5 | D17: 265255125
A18: 2007-05-01 | B18: 2007 | C18: 268501831.2 | D18: 276477719
A19: 2007-06-01 | B19: 2007 | C19: 304679127 | D19: 296935633.6
A20: 2007-07-01 | B20: 2007 | C20: 302183688.8 | D20: 301902740.7
A21: 2007-08-01 | B21: 2007 | C21: 317756807 | D21: 316802734.8
A22: 2007-09-01 | B22: 2007 | C22: 280873709.7 | D22: 269968632.6
A23: 2007-10-01 | B23: 2007 | C23: 275821162.1 | D23: 277207381.1
A24: 2007-11-01 | B24: 2007 | C24: 274311353.6 | D24: 278674272.4
A25: 2007-12-01 | B25: 2007 | C25: 294695847.8 | D25: 290015554.3
A26: 2008-01-01 | B26: 2008 | C26: 301541879.9 | D26: 291686283
A27: 2008-02-01 | B27: 2008 | C27: 286013196.4 | D27: 281912565.4
A28: 2008-03-01 | B28: 2008 | C28: 285378792.3 | D28: 284871119.7
A29: 2008-04-01 | B29: 2008 | C29: 255049710.7 | D29: 261866293
A30: 2008-05-01 | B30: 2008 | C30: 248546059.2 | D30: 262281522.6
A31: 2008-06-01 | B31: 2008 | C31: 287944901.3 | D31: 291902451.9
A32: 2008-07-01 | B32: 2008 | C32: 319461681.3 | D32: 319670674.4
A33: 2008-08-01 | B33: 2008 | C33: 293716156.3 | D33: 284332650
A34: 2008-09-01 | B34: =YEAR(A34) -> 2008 | C34: 283916906.4 | D34: 261728992.4
A35: 2008-10-01 | B35: 2008 | C35: 262065574 | D35: 268714173.4
A36: 2008-11-01 | B36: 2008 | C36: 268677317.4 | D36: 272343550.2
A37: 2008-12-01 | B37: 2008 | C37: 298039893.5 | D37: 293029108.2
A38: 2009-01-01 | B38: 2009 | C38: 307276829.9 | D38: 301803492.9
A39: 2009-02-01 | B39: 2009 | C39: 264065998.4 | D39: 267521698.7
A40: 2009-03-01 | B40: 2009 | C40: 278082458 | D40: 282478840.3
A41: 2009-04-01 | B41: 2009 | C41: 250781054.8 | D41: 260614843.1
A42: 2009-05-01 | B42: 2009 | C42: 250742745.1 | D42: 255071476.2
A43: 2009-06-01 | B43: 2009 | C43: 265479494.8 | D43: 270885824.3
A44: 2009-07-01 | B44: 2009 | C44: 274906308.3 | D44: 269192629.5
A45: 2009-08-01 | B45: 2009 | C45: 300712862.7 | D45: 295857665.6
A46: 2009-09-01 | B46: 2009 | C46: 263969677.2 | D46: 256219850.2
A47: 2009-10-01 | B47: 2009 | C47: 258962858.8 | D47: 265073784.2
A48: 2009-11-01 | B48: 2009 | C48: 258162607.6 | D48: 264239578.4
A49: 2009-12-01 | B49: 2009 | C49: 292766418 | D49: 288105995.3
A50: 2010-01-01 | B50: 2010 | C50: 301373371.7 | D50: 289239909.3
A51: 2010-02-01 | B51: 2010 | C51: 268164437.3 | D51: 266465619.5
A52: 2010-03-01 | B52: 2010 | C52: 269584961.7 | D52: 276514733.2
A53: 2010-04-01 | B53: 2010 | C53: 242909549.6 | D53: 251174053
A54: 2010-05-01 | B54: 2010 | C54: 269054896.2 | D54: 273541525.6
A55: 2010-06-01 | B55: 2010 | C55: 288397187.6 | D55: 282969038.4
A56: 2010-07-01 | B56: 2010 | C56: 334725938.1 | D56: 337015332.3
A57: 2010-08-01 | B57: 2010 | C57: 325611196.9 | D57: 331373904.3
A58: 2010-09-01 | B58: 2010 | C58: 264224372 | D58: 261423746.1
A59: 2010-10-01 | B59: 2010 | C59: 254480106.5 | D59: 256972716.4
A60: 2010-11-01 | B60: 2010 | C60: 262982872.6 | D60: 268461027.4
A61: 2010-12-01 | B61: 2010 | C61: 293281443.4 | D61: 291642177.9
A62: 2011-01-01 | B62: 2011 | C62: 300666159.3 | D62: 292053021.2
A63: 2011-02-01 | B63: 2011 | C63: 269236699.8 | D63: 267820015.1
A64: 2011-03-01 | B64: 2011 | C64: 282763557.6 | D64: 285013266.1
A65: 2011-04-01 | B65: 2011 | C65: 251072267.6 | D65: 253809787.9
A66: 2011-05-01 | B66: =YEAR(A66) -> 2011 | C66: 259668932.4 | D66: 261560604.9
A67: 2011-06-01 | B67: 2011 | C67: 278903469.9 | D67: 268478463.3
A68: 2011-07-01 | B68: 2011 | C68: 342682880.6 | D68: 355538383.4
A69: 2011-08-01 | B69: 2011 | C69: 311408950 | D69: 303207816.9
A70: 2011-09-01 | B70: 2011 | C70: 270531205.4 | D70: 262172955.1
A71: 2011-10-01 | B71: 2011 | C71: 257212837.9 | D71: 254905728.3
A72: 2011-11-01 | B72: 2011 | C72: 256512690.7 | D72: 262244719.6
A73: 2011-12-01 | B73: 2011 | C73: 277881320.2 | D73: 276565962.3
A74: 2012-01-01 | B74: 2012 | C74: 290374956 | D74: 281972513.9
A75: 2012-02-01 | B75: 2012 | C75: 265047531.9 | D75: 264489484.6
A76: 2012-03-01 | B76: 2012 | C76: 264589708.5 | D76: 264725373
A77: 2012-04-01 | B77: 2012 | C77: 241856924.9 | D77: 252654992.3
A78: 2012-05-01 | B78: 2012 | C78: 264293073.5 | D78: 267682592.1
A79: 2012-06-01 | B79: 2012 | C79: 290940514.1 | D79: 295816754
A80: 2012-07-01 | B80: 2012 | C80: 340196199.4 | D80: 356483862.4
A81: 2012-08-01 | B81: 2012 | C81: 304061556.8 | D81: 300105475.6
A82: 2012-09-01 | B82: 2012 | C82: 261393756 | D82: 258156924.7
A83: 2012-10-01 | B83: 2012 | C83: 253052401.8 | D83: 259685192.1
A84: 2012-11-01 | B84: 2012 | C84: 260224800 | D84: 266285478.1
A85: 2012-12-01 | B85: 2012 | C85: 271295249.8 | D85: 272813649.3
A86: 2013-01-01 | B86: 2013 | C86: 288991701.3 | D86: 284041405.8
A87: 2013-02-01 | B87: 2013 | C87: 262888751 | D87: 263886050
A88: 2013-03-01 | B88: 2013 | C88: 276366259.2 | D88: 275072164.7
A89: 2013-04-01 | B89: 2013 | C89: 251523569.8 | D89: 257672963.9
A90: 2013-05-01 | B90: 2013 | C90: 259256155.3 | D90: 267899297.1
A91: 2013-06-01 | B91: 2013 | C91: 276460042.3 | D91: 272391384.5
A92: 2013-07-01 | B92: 2013 | C92: 321327185.6 | D92: 322880951.8
A93: 2013-08-01 | B93: 2013 | C93: 294037259.6 | D93: 285731000.2
A94: 2013-09-01 | B94: 2013 | C94: 263616852.7 | D94: 257139888.5
A95: 2013-10-01 | B95: 2013 | C95: 260620451.1 | D95: 258104675.7
A96: 2013-11-01 | B96: 2013 | C96: 264051626 | D96: 267701352.2
A97: 2013-12-01 | B97: 2013 | C97: 286523069.5 | D97: 283796226.3
A98: 2014-01-01 | B98: =YEAR(A98) -> 2014 | C98: 305527740.5 | D98: 295313254.6
A99: 2014-02-01 | B99: 2014 | C99: 270783682.4 | D99: 271520837.8
A100: 2014-03-01 | B100: 2014 | C100: 288299673 | D100: 284924802.3
A101: 2014-04-01 | B101: 2014 | C101: 244855513 | D101: 253609155
A102: 2014-05-01 | B102: 2014 | C102: 251891961.5 | D102: 255031763.4
A103: 2014-06-01 | B103: 2014 | C103: 283978631.8 | D103: 285585304.5
A104: 2014-07-01 | B104: 2014 | C104: 286546351.3 | D104: 274972788.3
A105: 2014-08-01 | B105: 2014 | C105: 283846898.6 | D105: 274727987.6
A106: 2014-09-01 | B106: 2014 | C106: 261882965.5 | D106: 251143624.5
A107: 2014-10-01 | B107: 2014 | C107: 246291396.5 | D107: 256242115.2
A108: 2014-11-01 | B108: 2014 | C108: 259203542.6 | D108: 265049621.3
A109: 2014-12-01 | B109: 2014 | C109: 264968874.8 | D109: 276336865.6
A110: 2015-01-01 | B110: 2015 | C110: 295598619 | D110: 289756942
A111: 2015-02-01 | B111: 2015 | C111: 273784130.8 | D111: 275794066.3
A112: 2015-03-01 | B112: 2015 | C112: 274934256.1 | D112: 280398240.7
A113: 2015-04-01 | B113: 2015 | C113: 243458062.7 | D113: 251043961.3
A114: 2015-05-01 | B114: 2015 | C114: 259161560.2 | D114: 265484208.7
A115: 2015-06-01 | B115: 2015 | C115: 267546627.5 | D115: 256746368.3
A116: 2015-07-01 | B116: 2015 | C116: 301589192.5 | D116: 293510638.1
A117: 2015-08-01 | B117: 2015 | C117: 290629200.9 | D117: 279224612.1
A118: 2015-09-01 | B118: 2015 | C118: 282605551.9 | D118: 272807952.4
A119: 2015-10-01 | B119: 2015 | C119: 248709445 | D119: 253237636.8
A120: 2015-11-01 | B120: 2015 | C120: 248717807.7 | D120: 255415157.7
A121: 2015-12-01 | B121: 2015 | C121: 260362308.7 | D121: 266708780.3
A122: 2016-01-01 | B122: 2016 | D122: 279805023.3
A123: 2016-02-01 | B123: 2016 | D123: 268338737.2
A124: 2016-03-01 | B124: 2016 | D124: 271230627.7
A125: 2016-04-01 | B125: 2016 | D125: 250644322
A126: 2016-05-01 | B126: 2016 | D126: 257763043.3
A127: 2016-06-01 | B127: 2016 | D127: 273169724.5
A128: 2016-07-01 | B128: 2016 | D128: 306588314.8
A129: 2016-08-01 | B129: 2016 | D129: 291099357.9
A130: 2016-09-01 | B130: =YEAR(A130) -> 2016 | D130: 253398607.7
A131: 2016-10-01 | B131: 2016 | D131: 251211214.5
A132: 2016-11-01 | B132: 2016 | D132: 260643210.9
A133: 2016-12-01 | B133: 2016 | D133: 273388296.7
A134: 2017-01-01 | B134: 2017 | D134: 280455105
A135: 2017-02-01 | B135: 2017 | D135: 260167139.9
A136: 2017-03-01 | B136: 2017 | D136: 274012206.7
A137: 2017-04-01 | B137: 2017 | D137: 243044220
A138: 2017-05-01 | B138: 2017 | D138: 258513523.2
A139: 2017-06-01 | B139: 2017 | D139: 271864021
A140: 2017-07-01 | B140: 2017 | D140: 305307817.5
A141: 2017-08-01 | B141: 2017 | D141: 289844097.5
A142: 2017-09-01 | B142: 2017 | D142: 250087255.5
A143: 2017-10-01 | B143: 2017 | D143: 252087878.7
A144: 2017-11-01 | B144: 2017 | D144: 259463844.7
A145: 2017-12-01 | B145: 2017 | D145: 270152930.7

Sheet NormalizedAnnualDataSumm
A2: Annual Actual vs. Normalized WSkWh
B3: WSkWh | C3: Normalized Value
A4: 2006 | B4: 3400452526 | C4: 3412657286
A5: 2007 | B5: 3457316677 | C5: 3439522287
A6: 2008 | B6: 3390352069 | C6: 3374339384
A7: 2009 | B7: 3265909314 | C7: 3277065679
A8: 2010 | B8: 3374790334 | C8: 3386793783
A9: 2011 | B9: 3358540971 | C9: 3343370724
A10: 2012 | B10: 3307326673 | C10: 3340872292
A11: 2013 | B11: 3305662923 | C11: 3296317361
A12: 2014 | B12: 3248077232 | C12: 3244458120
A13: 2015 | B13: 3247096763 | C13: 3240128565
A14: 2016 | C14: 3237280481
A15: 2017 | C15: 3215000040

Sheet NormalizedAnnualDataSumm2
A2: Annual Actual vs. Normalized WSkWh
B3: WSkWh | C3: % Change | D3: Normalized Value | E3: % Change
A4: 2006 | B4: 3400452526 | D4: 3412657286
A5: 2007 | B5: 3457316677 | C5: =B5/B4-1 -> 0.0167225246 | D5: 3439522287 | E5: =D5/D4-1 -> 0.007872164931
A6: 2008 | B6: 3390352069 | C6: =B6/B5-1 -> -0.01936895407 | D6: 3374339384 | E6: =D6/D5-1 -> -0.01895114985
A7: 2009 | B7: 3265909314 | C7: -0.03670496534 | D7: 3277065679 | E7: -0.02882748138
A8: 2010 | B8: 3374790334 | C8: 0.03333865386 | D8: 3386793783 | E8: 0.03348364526
A9: 2011 | B9: 3358540971 | C9: -0.004814924982 | D9: 3343370724 | E9: -0.01282128818
A10: 2012 | B10: 3307326673 | C10: -0.01524897241 | D10: 3340872292 | E10: -0.0007472794473
A11: 2013 | B11: 3305662923 | C11: -0.0005030496125 | D11: 3296317361 | E11: -0.01333631681
A12: 2014 | B12: 3248077232 | C12: -0.01742031575 | D12: 3244458120 | E12: -0.01573247808
A13: 2015 | B13: 3247096763 | C13: -0.0003018612256 | D13: 3240128565 | E13: -0.001334446335
A14: 2016 | D14: 3237280481 | E14: -0.0008790034776
A15: 2017 | D15: 3215000040 | E15: -0.006882455892

Sheet Summary T Stats
A2: Statistic | B2: Value
A3: R Square | B3: 0.9013810626
A4: Adjusted R Square | B4: 0.8961446588
A5: F Test | B5: 172.1374257
A6: Mean Absolute Percentage Error (Annual) | B6: 0.004117893913
A7: Mean Absolute Percentage Error (Monthly) | B7: 0.02094012688
A8: Variable | B8: t Stat
A9: WSkWh | B9: 2.633281877
A10: LonHDD | B10: 19.50870474
A11: LonCDD | B11: 29.53245788
A12: MonthDays | B12: 5.247687464
A13: PeakDays | B13: 3.144531526
A14: Year | B14: -2.511481468
A15: Population | B15: 1.265779364
